Workbook

Sheet Profile Selection
A1: Description of Excel Tool: This spreadsheet tool is intended to assist users who are configuring an ABB ACS380, ACS480, ACS580, ACH580, ACQ580, ACS880, or DCS880 on Ethernet IP to communicate to a Rockwell PLC when replacing a Rockwell VFD with ABB VFD
B2: The use of 1-Port modules or 2-Port Modules are identical in configuration, thus either can be used with this configuration tool.
A3: Using this Tool:
B4: Follow the Steps below, filling out the Highlighted cells to help guide you through the selections of drive being used.
B5: Then click on the tab which is defined in the "Green" Highlighted box to assist with defining the needed parameter configuration along with defining the corresponding Rockwell Logix 5000 software configuration.
B6: Note: To assist the user of this tool, please reference the comments inserted in various cells for more information.
A7: Follow the Steps below to Determine the correct Profile Configuration for your application:
A9: Step 1 | B9: What ABB VFD are you configuring for Ethernet IP Communications? | I9: ACH580 | K9: What Control Mode are you utilizing with the VFD? | P9: Vector
M12: =IF(G12="Customized by the PLC Programmer - 32bit", "32 Bit", "16 Bit") -> 16 Bit | N12: = Word Size
A14: Step 3 | B14: A 2nd reference "Torque Reference" for VFD Control/Torque feeback is required. | J14: YES
A17: Step 2 | B17: What Rockwell VFD are you configuring for Ethernet IP Communications? | I17: Powerflex525
A19: Step 3 | B19: Define the Rockwell Output and Input data used. Note: Logic Command/FreqCommand/ DriveStatus/DriveFreq are automatically mapped so no need to map here | Q19: Input Data (Read) (Data Read by the PLC from the VFD) The Data Shown in the Input Data Table below is exactly the order in which it will appear in the PLC and the scaling for each input signal being communicated. | T19: Output Data (Write) (Data Sent From PLC to the VFD)
Q20: Input Word # | R20: Input Description | T20: Output Word # | U20: Output Description
B21: Input Data sent to the PLC from the VFD | C21: Input 1 | D21: DC Bus Volts | H21: Output Data sent from the PLC to the VFD | I21: Output 1 | Q21: =IF($M$12= "16 Bit", "Word 1 (16bit)","Word 1 (32bit)") -> Word 1 (16bit) | R21: Status Word | T21: =IF($M$12= "16 Bit", "Word 1 (16bit)","Word 1 (32bit)") -> Word 1 (16bit) | U21: Control Word
C22: Input 2 | D22: Output Current | I22: Output 2 | Q22: =IF($M$12= "16 Bit", "Word 2 (16bit)","Word 2 (32bit)") -> Word 2 (16bit) | R22: =IF(AO9="Scalar (V/Hz)","Actual Frequency","Actual Speed") -> Actual Speed | T22: =IF($M$12= "16 Bit", "Word 2 (16bit)","Word 2 (32bit)") -> Word 2 (16bit) | U22: =IF(AO9="Scalar (V/Hz)","Frequency Reference","Speed Reference") -> Speed Reference
C23: Input 3 | I23: Output 3 | Q23: =IF($M$12= "16 Bit", "Word 3 (16bit)","Word 3 (32bit)") -> Word 3 (16bit) | R23: =IF($J$14="YES", "Actual Torque", E21) -> Actual Torque | T23: =IF($M$12= "16 Bit", "Word 3 (16bit)","Word 3 (32bit)") -> Word 3 (16bit) | U23: =IF(J14="YES", "Torque Reference", K21) -> Torque Reference
C24: Input 4 | I24: Output 4 | Q24: Custom In 1 (Word 4 16 bit) | R24: =IF($M$12="32 Bit",IF($J$14="Yes",D21,D23),IF($J$14="Yes",D21,D22)) -> DC Bus Volts | T24: Custom Out 1 (Word 4 16 bit) | U24: =IF($M$12="32 Bit",IF($J$14="Yes",J21,J23),IF($J$14="Yes",J21,J22)) -> 0
C25: Input 5 | I25: Output 5 | Q25: Custom In 2 (Word 5 16 bit) | R25: =IF($M$12="32 Bit",IF($J$14="Yes",D23,D25),IF($J$14="Yes",D22,D23)) -> Output Current | T25: Custom Out 2 (Word 5 16 bit) | U25: =IF($M$12="32 Bit",IF($J$14="Yes",J23,J25),IF($J$14="Yes",J22,J23)) -> 0
C26: Input 6 | I26: Output 6 | Q26: Custom In 3 (Word 6 16 bit) | R26: =IF($M$12="32 Bit",IF($J$14="Yes",D25,D27),IF($J$14="Yes",D23,D24)) -> 0 | T26: Custom Out 3 (Word 6 16 bit) | U26: =IF($M$12="32 Bit",IF($J$14="Yes",J25,J27),IF($J$14="Yes",J23,J24)) -> 0
C27: Input 7 | I27: Output 7 | Q27: Custom In 4 (Word 7 16 bit) | R27: =IF($M$12="32 Bit",IF($J$14="Yes",D27,D29),IF($J$14="Yes",D24,D25)) -> 0 | T27: Custom Out 4 (Word 7 16 bit) | U27: =IF($M$12="32 Bit",IF($J$14="Yes",J27,J29),IF($J$14="Yes",J24,J25)) -> 0
C28: Input 8 | I28: Output 8 | Q28: Custom In 5 (Word 8 16 bit) | R28: =IF($M$12="32 Bit",IF($J$14="Yes",D29,"NA"),IF($J$14="Yes",D25,D26)) -> 0 | T28: Custom Out 5 (Word 8 16 bit) | U28: =IF($M$12="32 Bit",IF($J$14="Yes",J29,"NA"),IF($J$14="Yes",J25,J26)) -> 0
C29: Input 9 | I29: Output 9 | Q29: Custom In 6 (Word 9 16 bit) | R29: =IF($M$12="32 Bit", "NA",IF($J$14="YES",D26,D27)) -> 0 | T29: Custom Out 6 (Word 9 16 bit) | U29: =IF($M$12="32 Bit", "NA",IF($J$14="YES",J26,J27)) -> 0
C30: Input 10 | I30: Output 10 | Q30: Custom In 7 (Word 10 16 bit) | R30: =IF($M$12="32 Bit", "NA",IF($J$14="YES",D27,D28)) -> 0 | T30: Custom Out 7 (Word 10 16 bit) | U30: =IF($M$12="32 Bit", "NA",IF($J$14="YES",J27,J28)) -> 0
Q31: Custom In 8 (Word 11 16 bit) | R31: =IF($M$12="32 Bit", "NA",IF($J$14="YES",D28,D29)) -> 0 | T31: Custom Out 8 (Word 11 16 bit) | U31: =IF($M$12="32 Bit", "NA",IF($J$14="YES",J28,J29)) -> 0
Q32: Custom In 9 (Word 12 16 bit) | R32: =IF($M$12="32 Bit", "NA",IF($J$14="YES",D29,D30)) -> 0 | T32: Custom Out 9 (Word 12 16 bit) | U32: =IF($M$12="32 Bit", "NA",IF($J$14="YES",J29,J30)) -> 0
Q33: Custom In 10 (Word 13 16 bit) | R33: =IF($M$12="32 Bit", "NA",IF($J$14="YES",D30,"NA")) -> 0 | T33: Custom Out 10 (Word 13 16 bit) | U33: =IF($M$12="32 Bit", "NA",IF($J$14="YES",J30,"NA")) -> 0
A41: Step 4 | B41: Define the IP Address of the VFD = | F41: 192 | G41: 168 | H41: 3 | I41: 3 | K41: Select the Required Subnet | N41: 255.255.255.0
B42: Define the Required Gateway = | F42: 0 | G42: 0 | H42: 0 | I42: 0
A44: Step 7 | B44: Only if Step 2 = "Predefined by the VFD", then complete Step 6. Select the required VFD Control Word Profile based on the available Control Bits that are available for each Profile. **Note: ODVA Extended is default, unselect if another Profile is desired.
B45: ODVA AC/DC Basic Profile Control Bits Consisting of: Run Forward, Fault Reset | L45: Not Selected
B46: ODVA AC/DC Extended Profile Control Word Bits Consisting of: Run Fwd, Run Reverse, Fault Reset | L46: Not Selected
B47: ABB Drives Profile Control Word Bits Consisting of: Run Command, Various Stopping Method Bits, Ramp Controls, Fault Reset, VFD Enable, Switch between 2 references or 2 Control Locations (i.e. Hand/Auto) | L47: ABB Drives
A49: Step 5 | B49: Click on the Tab below labeled ABB Drives Setup: | L49: ABB Drives Setup
B52: **Important AOI Information** ABB has Add-On Instructions available for all ABB VFDs. Add-On Instructions (also known as AOIs) allow for a simplified way of importing predefined Data Tags into the Rockwell PLC to ease the integration of ABB VFDs into the ControlLogix or CompacLogix PLCs on Ethernet IP. The AOI's can be accessed from the ABB website, please use the provided link below to access the ABB Ethernet IP Connectivity Web page where the Add-On Instructions may be downloaded as a zip file. Once downloaded, unzip and run the Install.exe utility. The files are organized under folders for every ABB VFD that supports AOIs, along with the Communication Module being utilized (Note: 1-Port and 2-Port Ethernet IP Communication Modules utilized for the ACSx80 Series of "All Compatible VFDs" are identical as it pertains to configuration and use of AOIs. When running the Install utility, if default directory structures are utilized, the files for all ACSx80 series of drives are found under the following directory: C:/ABB/Add On Instructions for RSLogix 5000
C60: https://www.abbnow.com/abbconnectivity
W64: Inputs | X64: Input Param | Y64: Input Scaling | Z64: Outputs | AA64: Output Param | AB64: Output Scaling | AC64: Inputs | AD64: Input Param | AE64: Input Scaling | AF64: Outputs | AG64: Output Param | AH64: Output Scaling | AI64: Inputs | AJ64: Input Param | AK64: Input Scaling | AL64: Outputs | AM64: Output Param | AN64: Output Scaling | AO64: Inputs | AP64: Input Param | AQ64: Input Scaling16 | AR64: Input Scaling32 | AS64: Outputs | AT64: Output Param | AU64: Output Scaling16 | AV64: Output Scaling32 | AW64: Inputs | AX64: Input Param | AY64: Input Scaling16 | AZ64: Input Scaling32 | BA64: Outputs | BB64: Output Param | BC64: Output Scaling16 | BD64: Output Scaling32
W65: ACS380 | Z65: ACS380 | AC65: ACS480 | AF65: ACS480 | AI65: ACS580 | AL65: ACS580 | AO65: ACS880 | AS65: ACS880 | AW65: DCS880 | BA65: DCS880
W67: Other | Z67: Other | AC67: Other | AF67: Other | AI67: Other | AL67: Other | AO67: Other | AS67: Other | AW67: Other | BA67: Other
W68: Motor speed used | X68: 1.01 | Y68: 20000=Par46.01 | Z68: RO/DIO control word | AA68: 10.99 | AB68: 1=1 | AC68: Motor speed used | AD68: 1.01 | AE68: 20000=Par46.01 | AF68: RO/DIO control word | AG68: 10.99 | AH68: 1=1 | AI68: Motor speed used | AJ68: 1.01 | AK68: 20000=Par46.01 | AL68: RO/DIO control word | AM68: 10.99 | AN68: 1=1 | AO68: Motor speed used | AP68: 1.01 | AQ68: 20000=Par46.01 | AR68: 100=1rpm | AS68: RO/DIO control word | AT68: 10.99 | AU68: 1=1 | AV68: 1=1 | AW68: Used motor spd filt | AX68: 1.01 | AY68: 20000=Par46.01 | AZ68: FW Manual | BA68: User control word1 | BB68: 6.100 | BC68: 1=1 | BD68: FW Manual
W69: Motor speed estimated | X69: 1.02 | Y69: 20000=Par46.01 | Z69: AO1 data storage | AA69: 13.91 | AB69: 100=1mA | AC69: Motor speed estimated | AD69: 1.02 | AE69: 20000=Par46.01 | AF69: AO1 data storage | AG69: 13.91 | AH69: 100=1mA | AI69: Motor speed estimated | AJ69: 1.02 | AK69: 20000=Par46.01 | AL69: AO1 data storage | AM69: 13.91 | AN69: 100=1mA | AO69: Motor speed estimated | AP69: 1.02 | AQ69: 20000=Par46.01 | AR69: 100=1rpm | AS69: AO1 data storage | AT69: 13.91 | AU69: 100=1 | AV69: 100=1 | AW69: EMF spd filtered | AX69: 1.02 | AY69: 20000=Par46.01 | AZ69: FW Manual | BA69: User control word2 | BB69: 6.101 | BC69: 1=1 | BD69: FW Manual
S70: =VLOOKUP(N41,P71:Q101,2) -> 24 | W70: Motor speed % | X70: 1.03 | Y70: 20000=Par46.01 | Z70: Speed ref safe | AA70: 22.41 | AB70: 20000=Par46.01 | AC70: Motor speed % | AD70: 1.03 | AE70: 20000=Par46.01 | AF70: Speed ref safe | AG70: 22.41 | AH70: 20000=Par46.01 | AI70: Motor speed % | AJ70: 1.03 | AK70: 20000=Par46.01 | AL70: AO2 data storage | AM70: 13.92 | AN70: 100=1mA | AO70: Motor speed % | AP70: 1.03 | AQ70: 20000=Par46.01 | AR70: 100=1% | AS70: AO2 data storage | AT70: 13.92 | AU70: 100=1 | AV70: 100=1 | AW70: Tacho spd filtered | AX70: 1.03 | AY70: 20000=Par46.01 | AZ70: FW Manual | BA70: RO/DIO control word | BB70: 10.99 | BC70: 1=1 | BD70: FW Manual
P71: 128.0.0.0 | Q71: 1 | T71: Rockwell Drives | W71: Encoder 1 speed filtered | X71: 1.04 | Y71: 1=1 | Z71: Jogging 1 ref | AA71: 22.42 | AB71: 20000=Par46.01 | AC71: Encoder 1 speed filtered | AD71: 1.04 | AE71: 1=1 | AF71: Jogging 1 ref | AG71: 22.42 | AH71: 20000=Par46.01 | AI71: Output frequency | AJ71: 1.06 | AK71: 20000=Par46.02 | AL71: Speed ref safe | AM71: 22.41 | AN71: 20000=Par46.01 | AO71: Encoder 1 speed filtered | AP71: 1.04 | AQ71: 20000=Par46.01 | AR71: 100=1rpm | AS71: Cont mag command | AT71: 21.12 | AU71: 1=On | AV71: 1=On | AW71: OnBoard enc spd filt | AX71: 1.04 | AY71: 20000=Par46.01 | AZ71: FW Manual | BA71: AO1 data storage | BB71: 13.91 | BC71: 100=1 | BD71: FW Manual
P72: 192.0.0.0 | Q72: 2 | T72: Powerflex755 | W72: Output frequency | X72: 1.06 | Y72: 20000=Par46.02 | Z72: Jogging 2 ref | AA72: 22.43 | AB72: 20000=Par46.01 | AC72: Output frequency | AD72: 1.06 | AE72: 20000=Par46.02 | AF72: Jogging 2 ref | AG72: 22.43 | AH72: 20000=Par46.01 | AI72: Motor current | AJ72: 1.07 | AK72: 10000=Par46.05 | AL72: Jogging 1 ref | AM72: 22.42 | AN72: 20000=Par46.01 | AO72: Encoder 2 speed filtered | AP72: 1.05 | AQ72: 20000=Par46.01 | AR72: 100=1rpm | AS72: Speed share | AT72: 22.16 | AU72: 1000=1 | AV72: 1000=1 | AW72: Encoder 1 spd filt | AX72: 1.05 | AY72: 20000=Par46.01 | AZ72: FW Manual | BA72: AO2 data storage | BB72: 13.92 | BC72: 100=1 | BD72: FW Manual
B73: 1 | C73: Predefined by the VFD - 16bit | M73: Outputs | N73: Inputs | P73: 224.0.0.0 | Q73: 3 | T73: Powerflex525 | W73: Motor current | X73: 1.07 | Y73: 10000=Par46.05 | Z73: Acceleration time 1 | AA73: 23.12 | AB73: 10=1s | AC73: Motor current | AD73: 1.07 | AE73: 10000=Par46.05 | AF73: Acceleration time 1 | AG73: 23.12 | AH73: 10=1s | AI73: Motor current % of motor nom | AJ73: 1.08 | AK73: 1=1% | AL73: Jogging 2 ref | AM73: 22.43 | AN73: 20000=Par46.01 | AO73: Output frequency | AP73: 1.06 | AQ73: 20000=Par46.02 | AR73: 100=1Hz | AS73: Speed ref safe | AT73: 22.41 | AU73: 20000=Par46.01 | AV73: 100=1rpm | AW73: Encoder 2 spd filt | AX73: 1.06 | AY73: 20000=Par46.01 | AZ73: FW Manual | BA73: Speed reference | BB73: 22.07 | BC73: 20000=Par46.01 | BD73: FW Manual
B74: 2 | C74: Customized by the PLC Programmer - 16bit | J74: Speed | M74: =IF(#REF!>1,1,0) ->  | N74: =IF(#REF!>1,1,0) ->  | P74: 240.0.0.0 | Q74: 4 | W74: Motor current % of motor nom | X74: 1.08 | Y74: 1=1% | Z74: Deceleration time 1 | AA74: 23.13 | AB74: 10=1s | AC74: Motor current % of motor nom | AD74: 1.08 | AE74: 1=1% | AF74: Deceleration time 1 | AG74: 23.13 | AH74: 10=1s | AI74: Motor current % of drive nom | AJ74: 1.09 | AK74: 1=1% | AL74: Acceleration time 1 | AM74: 23.12 | AN74: 10=1s | AO74: Motor current | AP74: 1.07 | AQ74: 10000=Par46.05 | AR74: 100=1A | AS74: Jogging 1 ref | AT74: 22.42 | AU74: 20000=Par46.01 | AV74: 100=1rpm | AW74: Speed change rate | AX74: 1.07 | AY74: 1=1rpm/s | AZ74: FW Manual | BA74: Aux speed reference | BB74: 22.08 | BC74: 20000=Par46.01 | BD74: FW Manual
C75: Customized by the PLC Programmer - 32bit | I75: Vector | J75: DTC | M75: =IF($M$12="32 Bit", 0, IF(#REF!>1,1,0)) ->  | N75: =IF($M$12="32 Bit", 0, IF(#REF!>1,1,0)) ->  | P75: 248.0.0.0 | Q75: 5 | W75: Motor current % of drive nom | X75: 1.09 | Y75: 1=1% | Z75: Acc time jogging | AA75: 23.20 | AB75: 10=1s | AC75: Motor current % of drive nom | AD75: 1.09 | AE75: 1=1% | AF75: Acc time jogging | AG75: 23.20 | AH75: 10=1s | AI75: Motor torque | AJ75: 1.10 | AK75: 10000=Par46.03 | AL75: Deceleration time 1 | AM75: 23.13 | AN75: 10=1s | AO75: Motor current % of motor nom | AP75: 1.08 | AQ75: 1=1% | AR75: 10=1% | AS75: Jogging 2 ref | AT75: 22.43 | AU75: 20000=Par46.01 | AV75: 100=1rpm | AW75: Motor current Amp | AX75: 1.10 | AY75: 1=1A | AZ75: FW Manual | BA75: Speed share | BB75: 22.16 | BC75: 1000=1 | BD75: FW Manual
I76: Scalar (V/Hz) | J76: Scalar (V/Hz) | M76: =IF(#REF!>1,1,0) ->  | N76: =IF(#REF!>1,1,0) ->  | P76: 252.0.0.0 | Q76: 6 | W76: Motor torque | X76: 1.10 | Y76: 10000=Par46.03 | Z76: Dec time jogging | AA76: 23.21 | AB76: 10=1s | AC76: Motor torque | AD76: 1.10 | AE76: 10000=Par46.03 | AF76: Dec time jogging | AG76: 23.21 | AH76: 10=1s | AI76: DC voltage | AJ76: 1.11 | AK76: 10=1V | AL76: Acc time jogging | AM76: 23.20 | AN76: 10=1s | AO76: Motor torque | AP76: 1.10 | AQ76: 10000=Par46.03 | AR76: 10=1% | AS76: Acceleration time 1 | AT76: 23.12 | AU76: 10=1s | AV76: 1000=1s | AW76: Motor torque filt | AX76: 1.17 | AY76: 10000=Par46.03 | AZ76: FW Manual | BA76: Jogging 1 reference | BB76: 22.42 | BC76: 20000=Par46.01 | BD76: FW Manual
C77: 50.01 | D77: 51.27 | E77: Control Mode | F77: Direction | G77: Dir Param | J77: Vector | M77: =IF($M$12="32 Bit", 0, IF(#REF!>1,1,0)) ->  | N77: =IF($M$12="32 Bit", 0, IF(#REF!>1,1,0)) ->  | P77: 254.0.0.0 | Q77: 7 | W77: DC voltage | X77: 1.11 | Y77: 10=1V | Z77: Shape time 1 | AA77: 23.32 | AB77: 10=1s | AC77: DC voltage | AD77: 1.11 | AE77: 10=1V | AF77: Shape time 1 | AG77: 23.32 | AH77: 10=1s | AI77: Output voltage | AJ77: 1.13 | AK77: 1=1V | AL77: Dec time jogging | AM77: 23.21 | AN77: 10=1s | AO77: DC voltage | AP77: 1.11 | AQ77: 10=1V | AR77: 100=1V | AS77: Deceleration time 1 | AT77: 23.13 | AU77: 10=1s | AV77: 1000=1s | AW77: Mains voltage | AX77: 1.20 | AY77: 10=1V | AZ77: FW Manual | BA77: Jogging 2 reference | BB77: 22.43 | BC77: 20000=Par46.01 | BD77: FW Manual
B78: ACS380 | C78: Enable | D78: Configure | E78: Scalar (V/Hz) | F78: Request | G78: 20.21 | H78: 1 | I78: ODVA ACDC Basic Profile | M78: =IF(#REF!>1,1,0) ->  | N78: =IF(#REF!>1,1,0) ->  | P78: 255.0.0.0 | Q78: 8 | W78: Output voltage | X78: 1.13 | Y78: 1=1V | Z78: Speed correction | AA78: 24.11 | AB78: 20000=Par46.01 | AC78: Output voltage | AD78: 1.13 | AE78: 1=1V | AF78: Speed correction | AG78: 24.11 | AH78: 20000=Par46.01 | AI78: Output power | AJ78: 1.14 | AK78: 10000=Par46.04 | AL78: Shape time 1 | AM78: 23.32 | AN78: 10=1s | AO78: Output voltage | AP78: 1.13 | AQ78: 1=1V | AR78: 1=1V | AS78: Shape time acc 1 | AT78: 23.16 | AU78: 10=1s | AV78: 1000=1s | AW78: Armature voltage | AX78: 1.21 | AY78: 10=1V | AZ78: FW Manual | BA78: Speed ref safe | BB78: 22.46 | BC78: 20000=Par46.01 | BD78: FW Manual
B79: ACS480 | C79: Enable | D79: Configure | E79: Scalar (V/Hz) | F79: Request | G79: 20.21 | H79: 2 | I79: ODVA ACDC Extended Profile | M79: =IF($M$12="32 Bit", 0, IF(#REF!>1,1,0)) ->  | N79: =IF($M$12="32 Bit", 0, IF(#REF!>1,1,0)) ->  | P79: 255.128.0.0 | Q79: 9 | W79: Output power | X79: 1.14 | Y79: 10000=Par46.04 | Z79: Freq acceleration time 1 | AA79: 28.72 | AB79: 10=1s | AC79: Output power | AD79: 1.14 | AE79: 10000=Par46.04 | AF79: Freq acceleration time 1 | AG79: 28.72 | AH79: 10=1s | AI79: Output power % of motor nom | AJ79: 1.15 | AK79: 10=1% | AL79: Speed correction | AM79: 24.11 | AN79: 20000=Par46.01 | AO79: Output power | AP79: 1.14 | AQ79: 10000=Par46.04 | AR79: 100=1unit | AS79: Shape time dec 1 | AT79: 23.18 | AU79: 10=1s | AV79: 1000=1s | AW79: Output power | AX79: 1.24 | AY79: 1=1kworHp | AZ79: FW Manual | BA79: Accleration time1 | BB79: 23.12 | BC79: 10=1s | BD79: FW Manual
B80: ACS580 | C80: Enable | D80: Configure | E80: Scalar (V/Hz) | F80: Request | G80: 20.21 | H80: 3 | I80: ABB Drives Profile | M80: =IF(#REF!>1,1,0) ->  | N80: =IF(#REF!>1,1,0) ->  | P80: 255.192.0.0 | Q80: 10 | W80: Output power % of motor nom | X80: 1.15 | Y80: 10=1% | Z80: Freq deceleration time 1 | AA80: 28.73 | AB80: 10=1s | AC80: Output power % of motor nom | AD80: 1.15 | AE80: 10=1% | AF80: Freq deceleration time 1 | AG80: 28.73 | AH80: 10=1s | AI80: Output power % of drive nom | AJ80: 1.16 | AK80: 10=1% | AL80: Freq acceleration time 1 | AM80: 28.72 | AN80: 10=1s | AO80: Output power % of motor nom | AP80: 1.15 | AQ80: 10=1% | AR80: 10=1% | AS80: Acc time jogging | AT80: 23.20 | AU80: 10=1s | AV80: 1000=1s | AW80: Output power % | AX80: 1.25 | AY80: 100=1% | AZ80: FW Manual | BA80: Decleration time1 | BB80: 23.13 | BC80: 10=1s | BD80: FW Manual
B81: ACS880 | C81: Option Slot 1 | D81: Refresh | E81: DTC | F81: Selected | G81: 20.24 | H81: 4 | I81: Transparent 16 Profile | M81: =IF($M$12="32 Bit", 0, IF(#REF!>1,1,0)) ->  | N81: =IF($M$12="32 Bit", 0, IF(#REF!>1,1,0)) ->  | P81: 255.224.0.0 | Q81: 11 | W81: Output power % of drive nom | X81: 1.16 | Y81: 10=1% | Z81: Shape time 1 | AA81: 28.82 | AB81: 10=1s | AC81: Output power % of drive nom | AD81: 1.16 | AE81: 10=1% | AF81: Shape time 1 | AG81: 28.82 | AH81: 10=1s | AI81: Motor shaft power | AJ81: 1.17 | AK81: 10000=Par46.04 | AL81: Freq deceleration time 1 | AM81: 28.73 | AN81: 10=1s | AO81: Motor shaft power | AP81: 1.17 | AQ81: 1=1unit | AR81: 100=1unit | AS81: Dec time jogging | AT81: 23.21 | AU81: 10=1s | AV81: 1000=1s | AW81: Reactive power % | AX81: 1.26 | AY81: 100=1% | AZ81: FW Manual | BA81: Shape time acc 1 | BB81: 23.16 | BC81: 10=1s | BD81: FW Manual
B82: DCS880 | C82: Option Slot 1 | D82: Refresh | E82: Speed | F82: Enable Neg Spd | G82: 20.24 | H82: 5 | I82: Transparent 32 Profile | M82: =IF(#REF!>1,1,0) ->  | N82: =IF(#REF!>1,1,0) ->  | P82: 255.240.0.0 | Q82: 12
B83: ACH580 | C83: Enable | D83: Configure | E83: Scalar (V/Hz) | F83: Request | G83: 20.21 | M83: =IF($M$12="32 Bit", 0, IF(#REF!>1,1,0)) ->  | N83: =IF($M$12="32 Bit", 0, IF(#REF!>1,1,0)) ->  | P83: 255.248.0.0 | Q83: 13
B84: ACQ580 | C84: Enable | D84: Configure | E84: Scalar (V/Hz) | F84: Request | G84: 20.21 | I84: Vector | M84: =IF($J$14="YES", 1, 0) -> 1 | N84: =IF($J$14="YES", 1, 0) -> 1 | P84: 255.252.0.0 | Q84: 14 | W84: Inverter MWh motoring | X84: 1.19 | Y84: 1=1MWh | Z84: Minimum frequency | AA84: 30.13 | AB84: 20000=Par46.02 | AC84: Inverter MWh motoring | AD84: 1.19 | AE84: 1=1MWh | AF84: Minimum frequency | AG84: 30.13 | AH84: 20000=Par46.02 | AI84: Inverter kWh motoring | AJ84: 1.20 | AK84: 10=1kWh | AL84: Maximum speed | AM84: 30.12 | AN84: 20000=Par46.01 | AO84: Inverter kWh motoring | AP84: 1.20 | AQ84: 10=1kWh | AR84: 10=1kWh | AS84: Freq deceleration time 1 | AT84: 28.73 | AU84: 10=1s | AV84: 1000=1s | AW84: Drive current | AX84: 1.40 | AY84: 100=1% | AZ84: FW Manual | BA84: Dec time jogging | BB84: 23.21 | BC84: 10=1s | BD84: FW Manual
C85: =VLOOKUP($I$9,$B$78:$E$84,2,FALSE) -> Enable | D85: =VLOOKUP($I$9,$B$78:$E$84,3,FALSE) -> Configure | E85: =VLOOKUP($I$9,$B$78:$E$84,4,FALSE) -> Scalar (V/Hz) | F85: =VLOOKUP($I$9,$B$78:$F$84,5,FALSE) -> Request | G85: =VLOOKUP($I$9,$B$78:$G$84,6,FALSE) -> 20.21 | M85: 2 | N85: 2 | P85: 255.254.0.0 | Q85: 15 | W85: Inverter kWh motoring | X85: 1.20 | Y85: 10=1kWh | Z85: Maximum frequency | AA85: 30.14 | AB85: 20000=Par46.02 | AC85: Inverter kWh motoring | AD85: 1.20 | AE85: 10=1kWh | AF85: Maximum frequency | AG85: 30.14 | AH85: 20000=Par46.02 | AI85: Flux actual % | AJ85: 1.24 | AK85: 1=1% | AL85: Minimum frequency | AM85: 30.13 | AN85: 20000=Par46.02 | AO85: Flux actual % | AP85: 1.24 | AQ85: 1=1% | AR85: 1=1% | AS85: Minimum speed | AT85: 30.11 | AU85: 20000=Par46.01 | AV85: 100=1rpm | AW85: Reactive current | AX85: 1.41 | AY85: 100=1% | AZ85: FW Manual | BA85: Emergency stop time | BB85: 23.23 | BC85: 10=1s | BD85: FW Manual
M86: =SUM(M74:M85) ->  | N86: =SUM(N74:N85) ->  | P86: 255.255.0.0 | Q86: 16 | W86: Flux actual % | X86: 1.24 | Y86: 1=1% | Z86: Maximum current | AA86: 30.17 | AB86: 1=1A | AC86: Flux actual % | AD86: 1.24 | AE86: 1=1% | AF86: Maximum current | AG86: 30.17 | AH86: 1=1A | AI86: Ambient temperature | AJ86: 1.31 | AK86: 1=1º | AL86: Maximum frequency | AM86: 30.14 | AN86: 20000=Par46.02 | AO86: Ambient temperature | AP86: 1.31 | AQ86: 1=1º | AR86: 10=1º | AS86: Maximum speed | AT86: 30.12 | AU86: 20000=Par46.01 | AV86: 100=1rpm | AW86: Current ripple | AX86: 1.50 | AY86: 100=1% | AZ86: FW Manual | BA86: Speed correction | BB86: 24.11 | BC86: 20000=Par46.01 | BD86: FW Manual
W87: Nom Torque Scale | X87: 1.30 | Y87: 1=100 | Z87: Minimum torque 1 | AA87: 30.19 | AB87: 10000=Par46.03 | AC87: Nom Torque Scale | AD87: 1.30 | AE87: 1=100 | AF87: Minimum torque 1 | AG87: 30.19 | AH87: 10000=Par46.03 | AI87: Cumulative inverter energy | AJ87: 1.54 | AK87: 10=1kWh | AL87: Maximum current | AM87: 30.17 | AN87: 1=1A | AO87: Inverter GWh regenerating | AP87: 1.32 | AQ87: 1=1GWh | AR87: 1=1GWh | AS87: Minimum frequency | AT87: 30.13 | AU87: 20000=Par46.02 | AV87: 100=1Hz | AW87: 12pulse serial arm V | AX87: 1.60 | AY87: 10=1V | AZ87: FW Manual | BA87: Ext torque ref 1 | BB87: 26.07 | BC87: 10000=Par46.03 | BD87: FW Manual
B88: ACS380 | C88: ACS480 | D88: ACS580 | E88: ACS880 | F88: DCS880 | G88: ACH580 | H88: ACQ580 | W88: Cumulative inverter energy | X88: 1.54 | Y88: 10=1kWh | Z88: Maximum torque 1 | AA88: 30.20 | AB88: 10000=Par46.03 | AC88: Cumulative inverter energy | AD88: 1.54 | AE88: 10=1kWh | AF88: Maximum torque 1 | AG88: 30.20 | AH88: 10000=Par46.03 | AI88: Inverter GWh counter | AJ88: 1.55 | AK88: 1=1GWh | AL88: Minimum torque 1 | AM88: 30.19 | AN88: 10000=Par46.03 | AO88: Inverter MWh regenerating | AP88: 1.33 | AQ88: 1=1MWh | AR88: 1=1MWh | AS88: Maximum frequency | AT88: 30.14 | AU88: 20000=Par46.02 | AV88: 100=1Hz | AW88: 12pulse parallel Amp | AX88: 1.61 | AY88: 1=1A | AZ88: FW Manual | BA88: Ext torque ref 2 | BB88: 26.08 | BC88: 10000=Par46.03 | BD88: FW Manual
B89: Predefined by the VFD - 16bit | C89: Predefined by the VFD - 16bit | D89: Predefined by the VFD - 16bit | E89: Predefined by the VFD - 16bit | F89: Predefined by the VFD - 16bit | G89: Predefined by the VFD - 16bit | H89: Predefined by the VFD - 16bit | P89: 255.255.224.0 | Q89: 19 | W89: Inverter GWh counter | X89: 1.55 | Y89: 1=1GWh | Z89: Power motoring limit | AA89: 30.26 | AB89: 1=1% | AC89: Inverter GWh counter | AD89: 1.55 | AE89: 1=1GWh | AF89: Power motoring limit | AG89: 30.26 | AH89: 1=1% | AI89: Inverter MWh counter | AJ89: 1.56 | AK89: 1=1MWh | AL89: Maximum torque 1 | AM89: 30.20 | AN89: 10000=Par46.03 | AO89: Inverter kWh regenerating | AP89: 1.34 | AQ89: 10=1kWh | AR89: 1=1kWh | AS89: Maximum start current | AT89: 30.16 | AU89: 1=1A | AV89: 100=1A | AW89: Mains voltage fast | AX89: 1.70 | AY89: 100=1% | AZ89: FW Manual | BA89: Arm cur ref external | BB89: 27.23 | BC89: 100=1% | BD89: FW Manual
P90: 255.255.240.0 | Q90: 20 | W90: Inverter MWh counter | X90: 1.56 | Y90: 1=1MWh | Z90: Power generating limit | AA90: 30.27 | AB90: 1=1% | AC90: Inverter MWh counter | AD90: 1.56 | AE90: 1=1MWh | AF90: Power generating limit | AG90: 30.27 | AH90: 1=1% | AI90: Inverter kWh counter | AJ90: 1.57 | AK90: 10=1kWh | AL90: Power motoring limit | AM90: 30.26 | AN90: 1=1% | AO90: Mot - regen energy GWh | AP90: 1.35 | AQ90: 1=1GWh | AR90: 1=1GWh | AS90: Maximum current | AT90: 30.17 | AU90: 1=1A | AV90: 100=1A | AW90: Arm voltage fast | AX90: 1.71 | AY90: 100=1% | AZ90: FW Manual | BA90: EMF volt ext ref | BB90: 28.19 | BC90: 100=1% | BD90: FW Manual
P91: 255.255.248.0 | Q91: 21 | W91: Inverter kWh counter | X91: 1.57 | Y91: 10=1kWh | Z91: Motor ambient temperature | AA91: 35.50 | AB91: 1=1º | AC91: Inverter kWh counter | AD91: 1.57 | AE91: 10=1kWh | AF91: Motor ambient temperature | AG91: 35.50 | AH91: 1=1º | AI91: Cumulative inverter energy rst | AJ91: 1.58 | AK91: 10=1kWh | AL91: Power generating limit | AM91: 30.27 | AN91: 1=1% | AO91: Mot - regen energy MWh | AP91: 1.36 | AQ91: 1=1mWh | AR91: 1=1mWh | AS91: Minimum torque 1 | AT91: 30.19 | AU91: 10000=Par46.03 | AV91: 10=1% | AW91: Used spd ref fast | AX91: 1.72 | AY91: 20000=Par46.01 | AZ91: FW Manual | BA91: Minimum speed | BB91: 30.11 | BC91: 20000=Par46.01 | BD91: FW Manual
P92: 255.255.252.0 | Q92: 22 | W92: Cumulative inverter energy rst | X92: 1.58 | Y92: 10=1kWh | Z92: Set 1 internal setpoint 1 | AA92: 40.21 | AB92: 1=1unit | AC92: Cumulative inverter energy rst | AD92: 1.58 | AE92: 10=1kWh | AF92: Set 1 internal setpoint 1 | AG92: 40.21 | AH92: 1=1unit | AI92: Abs motor speed used | AJ92: 1.61 | AK92: 1=1rpm | AL92: Motor ambient temperature | AM92: 35.50 | AN92: 1=1º | AO92: Mot - regen energy kWh | AP92: 1.37 | AQ92: 10=1kWh | AR92: 1=1kWh | AS92: Maximum torque 1 | AT92: 30.20 | AU92: 10000=Par46.03 | AV92: 10=1% | AW92: Used spd fdbk fast | AX92: 1.73 | AY92: 20000=Par46.01 | AZ92: FW Manual | BA92: Maximum speed | BB92: 30.12 | BC92: 20000=Par46.01 | BD92: FW Manual
K93: 50.01 selections: | P93: 255.255.254.0 | Q93: 23 | W93: Abs motor speed used | X93: 1.61 | Y93: 1=1rpm | Z93: Set 1 internal setpoint 2 | AA93: 40.22 | AB93: 1=1unit | AC93: Abs motor speed used | AD93: 1.61 | AE93: 1=1rpm | AF93: Set 1 internal setpoint 2 | AG93: 40.22 | AH93: 1=1unit | AI93: Abs motor speed % | AJ93: 1.62 | AK93: 10=1% | AL93: Set 1 internal setpoint 1 | AM93: 40.21 | AN93: 1=1unit | AO93: Abs motor speed used | AP93: 1.61 | AQ93: 20000=Par46.01 | AR93: 100=1rpm | AS93: Power motoring limit | AT93: 30.26 | AU93: 1=1% | AV93: 100=1% | AW93: Used current ref fast | AX93: 1.74 | AY93: 100=1% | AZ93: FW Manual | BA93: Spd control min torq | BB93: 30.13 | BC93: 10000=Par46.03 | BD93: FW Manual
B94: 1 | C94: ODVA ACDC Basic Profile | F94: 4 | K94: Option Slot 1 | P94: 255.255.255.0 | Q94: 24 | W94: Abs motor speed % | X94: 1.62 | Y94: 10=1% | Z94: Set 1 internal setpoint 3 | AA94: 40.23 | AB94: 1=1unit | AC94: Abs motor speed % | AD94: 1.62 | AE94: 10=1% | AF94: Set 1 internal setpoint 3 | AG94: 40.23 | AH94: 1=1unit | AI94: Abs output frequency | AJ94: 1.63 | AK94: 1=1Hz | AL94: Set 1 internal setpoint 2 | AM94: 40.22 | AN94: 1=1unit | AO94: Abs motor speed % | AP94: 1.62 | AQ94: 10=1% | AR94: 100=1% | AS94: Power generating limit | AT94: 30.27 | AU94: 1=1% | AV94: 100=1% | AW94: Motor current fast | AX94: 1.75 | AY94: 100=1% | AZ94: FW Manual | BA94: Spd control max torq | BB94: 30.14 | BC94: 10000=Par46.03 | BD94: FW Manual
B95: 2 | C95: ODVA ACDC Extended Profile | F95: 5 | K95: Option Slot 2 | P95: 255.255.255.128 | Q95: 25 | W95: Abs output frequency | X95: 1.63 | Y95: 1=1Hz | Z95: Set 1 internal setpoint 0 | AA95: 40.24 | AB95: 1=1unit | AC95: Abs output frequency | AD95: 1.63 | AE95: 1=1Hz | AF95: Set 1 internal setpoint 0 | AG95: 40.24 | AH95: 1=1unit | AI95: Abs motor torque | AJ95: 1.64 | AK95: 1=1% | AL95: Set 1 internal setpoint 3 | AM95: 40.23 | AN95: 1=1unit | AO95: Abs output frequency | AP95: 1.63 | AQ95: 20000=Par46.02 | AR95: 100=1Hz | AS95: Motor ambient temperature | AT95: 35.50 | AU95: 1=1º | AV95: 1=1º | AW95: Firing Angle fast | AX95: 1.76 | AY95: 100=1° | AZ95: FW Manual | BA95: Minimum torque 1 | BB95: 30.19 | BC95: 10000=Par46.03 | BD95: FW Manual
B96: 3 | C96: ABB Drives Profile | F96: 6 | K96: Option Slot 3 | P96: 255.255.255.192 | Q96: 26 | W96: Abs motor torque | X96: 1.64 | Y96: 1=1% | Z96: Feedback data storage | AA96: 40.91 | AB96: 100=1 | AC96: Abs motor torque | AD96: 1.64 | AE96: 1=1% | AF96: Feedback data storage | AG96: 40.91 | AH96: 100=1 | AI96: Abs output power | AJ96: 1.65 | AK96: 1=1kW | AL96: Set 1 internal setpoint 0 | AM96: 40.24 | AN96: 1=1unit | AO96: Abs motor torque | AP96: 1.64 | AQ96: 10000=Par46.03 | AR96: 10=1% | AS96: Set 1 internal setpoint 1 | AT96: 40.21 | AU96: 1=1unit | AV96: 100=1unit | AW96: M1 fld cur ref fast | AX96: 1.77 | AY96: 100=1% | AZ96: FW Manual | BA96: Maximum torque 1 | BB96: 30.20 | BC96: 10000=Par46.03 | BD96: FW Manual
B97: 4 | C97: Transparent 16 Profile | F97: 2 | K97: Enable | P97: 255.255.255.224 | Q97: 27 | W97: Abs output power | X97: 1.65 | Y97: 1=1kW | Z97: Setpoint data storage | AA97: 40.92 | AB97: 100=1 | AC97: Abs output power | AD97: 1.65 | AE97: 1=1kW | AF97: Setpoint data storage | AG97: 40.92 | AH97: 100=1 | AI97: Abs output power % motor nom | AJ97: 1.66 | AK97: 1=1% | AL97: Feedback data storage | AM97: 40.91 | AN97: 100=1 | AO97: Abs output power | AP97: 1.65 | AQ97: 1=1unit | AR97: 100=1unit | AS97: Set 1 internal setpoint 2 | AT97: 40.22 | AU97: 1=1unit | AV97: 100=1unit | AW97: M1 fld current fast | AX97: 1.78 | AY97: 100=1% | AZ97: FW Manual | BA97: M1 cur lim bridge2 | BB97: 30.34 | BC97: 100=1% | BD97: FW Manual
B98: 5 | C98: Transparent 32 Profile | F98: 3 | P98: 255.255.255.240 | Q98: 28 | W98: Abs output power % motor nom | X98: 1.66 | Y98: 1=1% | Z98: Brake open torque | AA98: 44.10 | AB98: 10000=Par46.03 | AC98: Abs output power % motor nom | AD98: 1.66 | AE98: 1=1% | AF98: Brake open torque | AG98: 44.10 | AH98: 10000=Par46.03 | AI98: Abs output power % drive nom | AJ98: 1.67 | AK98: 1=1% | AL98: Setpoint data storage | AM98: 40.92 | AN98: 100=1 | AO98: Abs output power % motor nom | AP98: 1.66 | AQ98: 10=1% | AR98: 10=1% | AS98: Set 1 internal setpoint 3 | AT98: 40.23 | AU98: 1=1unit | AV98: 100=1unit | AW98: M2 fld cur ref fast | AX98: 1.79 | AY98: 100=1% | AZ98: FW Manual | BA98: M1 cur lim bridge1 | BB98: 30.35 | BC98: 100=1% | BD98: FW Manual
P99: 255.255.255.248 | Q99: 29 | W99: Abs output power % drive nom | X99: 1.67 | Y99: 1=1% | Z99: DataStorage 1 int32 | AA99: 47.11 | AB99: 1=1 | AC99: Abs output power % drive nom | AD99: 1.67 | AE99: 1=1% | AF99: DataStorage 1 int32 | AG99: 47.11 | AH99: 1=1 | AI99: Abs motor shaft power | AJ99: 1.68 | AK99: 1=1kW | AL99: DataStorage 1 int32 | AM99: 47.11 | AN99: 1=1 | AO99: Abs motor shaft power | AP99: 1.68 | AQ99: 1=1unit | AR99: 100=1unit | AS99: Set 1 internal setpoint 4 | AT99: 40.24 | AU99: 1=1unit | AV99: 100=1unit | AW99: M2 fld current fast | AX99: 1.80 | AY99: 100=1% | AZ99: FW Manual | BA99: Motor ambient temp1 | BB99: 35.50 | BC99: 1=1°C or F | BD99: FW Manual
P100: 255.255.255.252 | Q100: 30 | W100: Abs motor shaft power | X100: 1.68 | Y100: 1=1kW | Z100: DataStorage 2 int32 | AA100: 47.12 | AB100: 1=1 | AC100: Abs motor shaft power | AD100: 1.68 | AE100: 1=1kW | AF100: DataStorage 2 int32 | AG100: 47.12 | AH100: 1=1 | AI100: Tripping fault | AJ100: 4.01 | AK100: 1=1 | AL100: DataStorage 2 int32 | AM100: 47.12 | AN100: 1=1 | AO100: U-phase RMS current | AP100: 1.72 | AQ100: 10000=Par46.05 | AR100: 100=1A | AS100: Feedback data storage | AT100: 40.91 | AU100: 100=1 | AV100: 100=1 | AW100: Tripping Fault | AX100: 4.01 | AY100: 1=1 | AZ100: FW Manual | BA100: Motor ambient temp2 | BB100: 35.58 | BC100: 1=1°C or F | BD100: FW Manual
P101: 255.255.255.254 | Q101: 31 | W101: Tripping fault | X101: 4.01 | Y101: 1=1 | Z101: DataStorage 3 int32 | AA101: 47.13 | AB101: 1=1 | AC101: Tripping fault | AD101: 4.01 | AE101: 1=1 | AF101: DataStorage 3 int32 | AG101: 47.13 | AH101: 1=1 | AI101: Active warning 1 | AJ101: 4.06 | AK101: 1=1 | AL101: DataStorage 3 int32 | AM101: 47.13 | AN101: 1=1 | AO101: V-phase RMS current | AP101: 1.73 | AQ101: 10000=Par46.05 | AR101: 100=1A | AS101: Setpoint data storage | AT101: 40.92 | AU101: 100=1 | AV101: 100=1 | AW101: Active Warning | AX101: 4.06 | AY101: 1=1 | AZ101: FW Manual | BA101: Set 1 internal setpoint 1 | BB101: 40.21 | BC101: 1=1unit | BD101: FW Manual
W102: Active warning 1 | X102: 4.06 | Y102: 1=1 | Z102: DataStorage 4 int32 | AA102: 47.14 | AB102: 1=1 | AC102: Active warning 1 | AD102: 4.06 | AE102: 1=1 | AF102: DataStorage 4 int32 | AG102: 47.14 | AH102: 1=1 | AI102: Latest fault | AJ102: 4.11 | AK102: 1=1 | AL102: DataStorage 4 int32 | AM102: 47.14 | AN102: 1=1 | AO102: W-phase RMS current | AP102: 1.74 | AQ102: 10000=Par46.05 | AR102: 100=1A | AS102: Brake open torque | AT102: 44.10 | AU102: 10000=Par46.03 | AV102: 10=1% | AW102: Latest fault | AX102: 4.11 | AY102: 1=1 | AZ102: FW Manual | BA102: Set 1 internal setpoint 2 | BB102: 40.22 | BC102: 1=1unit | BD102: FW Manual
W103: Latest fault | X103: 4.11 | Y103: 1=1 | Z103: DataStorage 1 int16 | AA103: 47.21 | AB103: 1=1 | AC103: Latest fault | AD103: 4.11 | AE103: 1=1 | AF103: DataStorage 1 int16 | AG103: 47.21 | AH103: 1=1 | AI103: Latest warning | AJ103: 4.16 | AK103: 1=1 | AL103: DataStorage 1 int16 | AM103: 47.21 | AN103: 1=1 | AO103: Tripping fault | AP103: 4.01 | AQ103: 1=1 | AR103: 1=1 | AS103: DataStorage 1 int32 | AT103: 47.11 | AU103: 1=1 | AV103: 1=1 | AW103: Latest warning | AX103: 4.16 | AY103: 1=1 | AZ103: FW Manual | BA103: Set 1 internal setpoint 3 | BB103: 40.23 | BC103: 1=1unit | BD103: FW Manual
W104: Latest warning | X104: 4.16 | Y104: 1=1 | Z104: DataStorage 2 int16 | AA104: 47.22 | AB104: 1=1 | AC104: Latest warning | AD104: 4.16 | AE104: 1=1 | AF104: DataStorage 2 int16 | AG104: 47.22 | AH104: 1=1 | AI104: On-time counter | AJ104: 5.01 | AK104: 1=1day | AL104: DataStorage 2 int16 | AM104: 47.22 | AN104: 1=1 | AO104: Active warning 1 | AP104: 4.06 | AQ104: 1=1 | AR104: 1=1 | AS104: DataStorage 2 int32 | AT104: 47.12 | AU104: 1=1 | AV104: 1=1 | AW104: Fault word 1 | AX104: 4.21 | AY104: 1=1 | AZ104: FW Manual | BA104: Set 1 internal setpoint 4 | BB104: 40.24 | BC104: 1=1unit | BD104: FW Manual
W105: On-time counter | X105: 5.01 | Y105: 1=1day | Z105: DataStorage 3 int16 | AA105: 47.23 | AB105: 1=1 | AC105: On-time counter | AD105: 5.01 | AE105: 1=1day | AF105: DataStorage 3 int16 | AG105: 47.23 | AH105: 1=1 | AI105: Run-time counter | AJ105: 5.02 | AK105: 1=1day | AL105: DataStorage 3 int16 | AM105: 47.23 | AN105: 1=1 | AO105: Latest fault | AP105: 4.11 | AQ105: 1=1 | AR105: 1=1 | AS105: DataStorage 3 int32 | AT105: 47.13 | AU105: 1=1 | AV105: 1=1 | AW105: Fault word 2 | AX105: 4.22 | AY105: 1=1 | AZ105: FW Manual | BA105: Feedback data storage | BB105: 40.91 | BC105: 100=1 | BD105: FW Manual
W106: Run-time counter | X106: 5.02 | Y106: 1=1day | Z106: DataStorage 4 int16 | AA106: 47.24 | AB106: 1=1 | AC106: Run-time counter | AD106: 5.02 | AE106: 1=1day | AF106: DataStorage 4 int16 | AG106: 47.24 | AH106: 1=1 | AI106: Fan on-time counter | AJ106: 5.04 | AK106: 1=1day | AL106: DataStorage 4 int16 | AM106: 47.24 | AN106: 1=1 | AO106: Latest warning | AP106: 4.16 | AQ106: 1=1 | AR106: 1=1 | AS106: DataStorage 4 int32 | AT106: 47.14 | AU106: 1=1 | AV106: 1=1 | AW106: Fault word 3 | AX106: 4.23 | AY106: 1=1 | AZ106: FW Manual | BA106: Setpoint data storage | BB106: 40.92 | BC106: 100=1 | BD106: FW Manual
K107: Input Data Selection Formula | W107: Fan on-time counter | X107: 5.04 | Y107: 1=1day | Z107: Clear fault and event logger | AA107: 96.51 | AB107: 1=reset | AC107: Fan on-time counter | AD107: 5.04 | AE107: 1=1day | AF107: Clear fault and event logger | AG107: 96.51 | AH107: 1=reset | AI107: Inverter temperature | AJ107: 5.11 | AK107: 1=1% | AL107: Clear fault and event logger | AM107: 96.51 | AN107: 1=reset | AO107: Fault word 1 | AP107: 4.21 | AQ107: 1=1 | AR107: 1=1 | AS107: DataStorage 1 int16 | AT107: 47.21 | AU107: 1=1 | AV107: 1=1 | AW107: User Fault Word | AX107: 4.25 | AY107: 1=1 | AZ107: FW Manual | BA107: Brake open torque | BB107: 44.1 | BC107: 10000=Par46.03 | BD107: FW Manual
D108: Speed or Freq Scaling Lookup | K108: =IF($I$9="ACS880",$AO$66:$AO$168,IF($I$9="DCS880",$AW$66:$AW$170,IF($I$9="ACS580",$AI$66:$AI$163,IF($I$9="ACS480",$AC$66:$AC$157,IF($I$9="ACS380",$W$66:$W$157,$AI$66:$AI$163))))) -> Main status word | W108: Inverter temperature | X108: 5.11 | Y108: 1=1% | Z108: Disable adaptive program | AA108: 96.70 | AB108: 1=disable | AC108: Inverter temperature | AD108: 5.11 | AE108: 1=1% | AF108: Disable adaptive program | AG108: 96.70 | AH108: 1=disable | AI108: Main status word | AJ108: 6.11 | AK108: 1=1 | AL108: Disable adaptive program | AM108: 96.70 | AN108: 1=disable | AO108: Fault word 2 | AP108: 4.22 | AQ108: 1=1 | AR108: 1=1 | AS108: DataStorage 2 int16 | AT108: 47.22 | AU108: 1=1 | AV108: 1=1 | AW108: Warning word 1 | AX108: 4.31 | AY108: 1=1 | AZ108: FW Manual | BA108: DataStorage 1 int32 | BB108: 47.11 | BC108: 1=1 | BD108: FW Manual
K109: Output Data Selection Formala | W109: Main status word | X109: 6.11 | Y109: 1=1 | Z109: Motor nominal current | AA109: 99.06 | AB109: 1=1A | AC109: Main status word | AD109: 6.11 | AE109: 1=1 | AF109: Motor nominal current | AG109: 99.06 | AH109: 1=1A | AI109: Drive status word 1 | AJ109: 6.16 | AK109: 1=1 | AL109: Motor nominal current | AM109: 99.06 | AN109: 1=1A | AO109: Warning word 1 | AP109: 4.31 | AQ109: 1=1 | AR109: 1=1 | AS109: DataStorage 3 int16 | AT109: 47.23 | AU109: 1=1 | AV109: 1=1 | AW109: Warning word 2 | AX109: 4.32 | AY109: 1=1 | AZ109: FW Manual | BA109: DataStorage 2 int32 | BB109: 47.12 | BC109: 1=1 | BD109: FW Manual
C110: CtrlMode | D110: T16 | E110: T32 | F110: ODVA Basic | G110: ODVA Ext | H110: ABB | K110: =IF($I$9="ACS880",$AS$66:$AS$168,IF($I$9="DCS880",$BA$66:$BA$168,IF($I$9="ACS580",$AL$66:$AL$163,IF($I$9="ACS480",$AF$66:$AF$157,IF($I$9="ACS380",$Z$66:$Z$157,$AL$66:$AL$163))))) -> Motor nominal voltage | W110: Drive status word 1 | X110: 6.16 | Y110: 1=1 | Z110: Motor nominal voltage | AA110: 99.07 | AB110: 10=1V | AC110: Drive status word 1 | AD110: 6.16 | AE110: 1=1 | AF110: Motor nominal voltage | AG110: 99.07 | AH110: 10=1V | AI110: Drive status word 2 | AJ110: 6.17 | AK110: 1=1 | AL110: Motor nominal voltage | AM110: 99.07 | AN110: 10=1V | AO110: Warning word 2 | AP110: 4.32 | AQ110: 1=1 | AR110: 1=1 | AS110: DataStorage 4 int16 | AT110: 47.24 | AU110: 1=1 | AV110: 1=1 | AW110: Warning word 3 | AX110: 4.33 | AY110: 1=1 | AZ110: FW Manual | BA110: DataStorage 3 int32 | BB110: 47.13 | BC110: 1=1 | BD110: FW Manual
C111: Scalar (V/Hz) | D111: 1=1Hz | E111: 100=1Hz | F111: 1=1Hz | G111: 1=1Hz | H111: 20000=Par46.02 | W111: Drive status word 2 | X111: 6.17 | Y111: 1=1 | Z111: Motor nominal frequency | AA111: 99.08 | AB111: 10=1Hz | AC111: Drive status word 2 | AD111: 6.17 | AE111: 1=1 | AF111: Motor nominal frequency | AG111: 99.08 | AH111: 10=1Hz | AI111: Start inhibit status word | AJ111: 6.18 | AK111: 1=1 | AL111: Motor nominal frequency | AM111: 99.08 | AN111: 10=1Hz | AO111: On-time counter | AP111: 5.01 | AQ111: 1=1day | AR111: 1=1day | AS111: DataStorage 5 int16 | AT111: 47.25 | AU111: 1=1 | AV111: 1=1 | AW111: User warning word | AX111: 4.35 | AY111: 1=1 | AZ111: FW Manual | BA111: DataStorage 4 int32 | BB111: 47.14 | BC111: 1=1 | BD111: FW Manual
C112: Vector | D112: 1=1rpm | E112: 100=1rpm | F112: 1=1rpm | G112: 1=1rpm | H112: 20000=Par46.01 | W112: Start inhibit status word | X112: 6.18 | Y112: 1=1 | Z112: Motor nominal speed | AA112: 99.09 | AB112: 1=1rpm | AC112: Start inhibit status word | AD112: 6.18 | AE112: 1=1 | AF112: Motor nominal speed | AG112: 99.09 | AH112: 1=1rpm | AI112: Speed control status word | AJ112: 6.19 | AK112: 1=1 | AL112: Motor nominal speed | AM112: 99.09 | AN112: 1=1rpm | AO112: Run-time counter | AP112: 5.02 | AQ112: 1=1day | AR112: 1=1day | AS112: DataStorage 6 int16 | AT112: 47.26 | AU112: 1=1 | AV112: 1=1 | AW112: On-time counter | AX112: 5.01 | AY112: 1=1day | AZ112: FW Manual | BA112: DataStorage 1 int16 | BB112: 47.21 | BC112: 1=1 | BD112: FW Manual
C113: DTC | D113: 1=1rpm | E113: 100=1rpm | F113: 1=1rpm | G113: 1=1rpm | H113: 20000=Par46.01 | W113: Speed control status word | X113: 6.19 | Y113: 1=1 | Z113: Motor nominal power | AA113: 99.10 | AB113: 1=1unit | AC113: Speed control status word | AD113: 6.19 | AE113: 1=1 | AF113: Motor nominal power | AG113: 99.10 | AH113: 1=1unit | AI113: Drive status word 3 | AJ113: 6.21 | AK113: 1=1 | AL113: Motor nominal power | AM113: 99.10 | AN113: 1=1unit | AO113: Fan on-time counter | AP113: 5.04 | AQ113: 1=1day | AR113: 1=1day | AS113: DataStorage 7 int16 | AT113: 47.27 | AU113: 1=1 | AV113: 1=1 | AW113: Run-time counter | AX113: 5.02 | AY113: 1=1day | AZ113: FW Manual | BA113: DataStorage 2 int16 | BB113: 47.22 | BC113: 1=1 | BD113: FW Manual
C114: Speed | D114: 1=1rpm | E114: 100=1rpm | F114: 1=1rpm | G114: 1=1rpm | H114: 20000=Par46.01 | W114: Drive status word 3 | X114: 6.21 | Y114: 1=1 | Z114: ID run requested | AA114: 99.13 | AB114: 1=1 | AC114: Drive status word 3 | AD114: 6.21 | AE114: 1=1 | AF114: ID run requested | AG114: 99.13 | AH114: 1=1 | AI114: Drive rating id | AJ114: 7.03 | AK114: " " | AL114: ID run requested | AM114: 99.13 | AN114: 1=1 | AO114: Inverter temperature | AP114: 5.11 | AQ114: 1=1% | AR114: 10=1% | AS114: DataStorage 8 int16 | AT114: 47.28 | AU114: 1=1 | AV114: 1=1 | AW114: Fan on-time counter | AX114: 5.04 | AY114: 1=1day | AZ114: FW Manual | BA114: DataStorage 3 int16 | BB114: 47.23 | BC114: 1=1 | BD114: FW Manual
W115: Drive rating id | X115: 7.03 | Y115: " " | AC115: Drive rating id | AD115: 7.03 | AE115: " " | AI115: Firmware version | AJ115: 7.05 | AK115: " " | AO115: Main fan service counter | AP115: 5.41 | AQ115: 1=1% | AR115: 1=1% | AS115: Force master | AT115: 60.15 | AU115: 1=True | AV115: 1=True | AW115: Control board temp | AX115: 5.10 | AY115: 1=1°C or F | AZ115: FW Manual | BA115: DataStorage 4 int16 | BB115: 47.24 | BC115: 1=1 | BD115: FW Manual
W116: Firmware version | X116: 7.05 | Y116: " " | AC116: Firmware version | AD116: 7.05 | AE116: " " | AI116: Adaptive program status | AJ116: 7.30 | AK116: 1=1 | AO116: Aux. fan service counter | AP116: 5.42 | AQ116: 1=1% | AR116: 1=1% | AS116: Force follower | AT116: 60.16 | AU116: 1=True | AV116: 1=True | AW116: Ch1 bridge temp | AX116: 5.11 | AY116: 1=1°C or F | AZ116: FW Manual | BA116: DataStorage 5 int16 | BB116: 47.25 | BC116: 1=1 | BD116: FW Manual
C117: Column # | D117: =VLOOKUP($L$49,C94:F98,4,FALSE) ->  | W117: Adaptive program status | X117: 7.30 | Y117: 1=1 | AC117: Adaptive program status | AD117: 7.30 | AE117: 1=1 | AI117: DI delayed status | AJ117: 10.02 | AK117: 1=1 | AO117: Main status word | AP117: 6.11 | AQ117: 1=1 | AR117: 1=1 | AS117: Clear fault and event logger | AT117: 96.51 | AU117: 1=reset | AV117: 1=reset | AW117: Main fan service cntr | AX117: 5.41 | AY117: 1=1% | AZ117: FW Manual | BA117: DataStorage 6 int16 | BB117: 47.26 | BC117: 1=1 | BD117: FW Manual
W118: DI delayed status | X118: 10.02 | Y118: 1=1 | AC118: DI delayed status | AD118: 10.02 | AE118: 1=1 | AI118: RO status | AJ118: 10.21 | AK118: 1=1 | AO118: Drive status word 1 | AP118: 6.16 | AQ118: 1=1 | AR118: 1=1 | AS118: Disable adaptive program | AT118: 96.70 | AU118: 1=disable | AV118: 1=disable | AW118: Main status word | AX118: 6.15 | AY118: 1=1 | AZ118: FW Manual | BA118: DataStorage 7 int16 | BB118: 47.27 | BC118: 1=1 | BD118: FW Manual
D119: =VLOOKUP(P9,C111:H114,D117,FALSE) ->  | W119: RO status | X119: 10.21 | Y119: 1=1 | AC119: RO status | AD119: 10.21 | AE119: 1=1 | AI119: AI1 actual value | AJ119: 12.11 | AK119: 1000=1mAorV | AO119: Drive status word 2 | AP119: 6.17 | AQ119: 1=1 | AR119: 1=1 | AS119: Motor nominal current | AT119: 99.06 | AU119: 1=1A | AV119: 10=1A | AW119: Drive status word1 | AX119: 6.16 | AY119: 1=1 | AZ119: FW Manual | BA119: DataStorage 8 int16 | BB119: 47.28 | BC119: 1=1 | BD119: FW Manual
W120: AI1 actual value | X120: 12.11 | Y120: 1000=1mAorV | AC120: AI1 actual value | AD120: 12.11 | AE120: 1000=1mAorV | AI120: AI2 actual value | AJ120: 12.21 | AK120: 1000=1mAorV | AO120: Start inhibit status word | AP120: 6.18 | AQ120: 1=1 | AR120: 1=1 | AS120: Motor nominal voltage | AT120: 99.07 | AU120: 10=1V | AV120: 10=1V | AW120: Drive status word2 | AX120: 6.17 | AY120: 1=1 | AZ120: FW Manual | BA120: Force master | BB120: 60.15 | BC120: 1=True | BD120: FW Manual
W121: AI2 actual value | X121: 12.21 | Y121: 1000=1mAorV | AC121: AI2 actual value | AD121: 12.21 | AE121: 1000=1mAorV | AI121: AO1 actual value | AJ121: 13.11 | AK121: 1=1mA | AO121: Speed control status word | AP121: 6.19 | AQ121: 1=1 | AR121: 1=1 | AS121: Motor nominal frequency | AT121: 99.08 | AU121: 10=1Hz | AV121: 10=1Hz | AW121: Drive status word3 | AX121: 6.18 | AY121: 1=1 | AZ121: FW Manual | BA121: Force follower | BB121: 60.16 | BC121: 1=True | BD121: FW Manual
W122: AO1 actual value | X122: 13.11 | Y122: 1=1mA | AC122: AO1 actual value | AD122: 13.11 | AE122: 1=1mA | AI122: AO2 actual value | AJ122: 13.21 | AK122: 1=1mA | AO122: Drive status word 3 | AP122: 6.21 | AQ122: 1=1 | AR122: 1=1 | AS122: Motor nominal speed | AT122: 99.09 | AU122: 1=1rpm | AV122: 1=1rpm | AW122: Drive inhibit status | AX122: 6.19 | AY122: 1=1 | AZ122: FW Manual | BA122: Pos cntr init val int | BB122: 90.76 | BC122: 1=1 | BD122: FW Manual
W123: Speed ref unlimited | X123: 22.01 | Y123: 20000=Par46.01 | AC123: Speed ref unlimited | AD123: 22.01 | AE123: 20000=Par46.01 | AI123: Speed ref unlimited | AJ123: 22.01 | AK123: 20000=Par46.01 | AO123: User status word 1 | AP123: 6.50 | AQ123: 1=1 | AR123: 1=1 | AS123: Motor nominal power | AT123: 99.10 | AU123: 1=1unit | AV123: 100=1unit | AW123: Run inhibit status w | AX123: 6.20 | AY123: 1=1 | AZ123: FW Manual | BA123: Pos cntr init cmd | BB123: 90.86 | BC123: 1=True | BD123: FW Manual
W124: Speed ref ramp input | X124: 23.01 | Y124: 20000=Par46.01 | AC124: Speed ref ramp input | AD124: 23.01 | AE124: 20000=Par46.01 | AI124: Speed ref ramp input | AJ124: 23.01 | AK124: 20000=Par46.01 | AO124: Drive rating id | AP124: 7.03 | AQ124: " " | AR124: " " | AS124: ID run requested | AT124: 99.13 | AU124: 1=1 | AV124: 1=1 | AW124: Spd ctrl status word | AX124: 6.21 | AY124: 1=1 | AZ124: FW Manual | BA124: Reset pos cntr init | BB124: 90.88 | BC124: 1=True | BD124: FW Manual
W125: Speed ref ramp output | X125: 23.02 | Y125: 20000=Par46.01 | AC125: Speed ref ramp output | AD125: 23.02 | AE125: 20000=Par46.01 | AI125: Speed ref ramp output | AJ125: 23.02 | AK125: 20000=Par46.01 | AO125: Firmware version | AP125: 7.05 | AQ125: " " | AR125: " " | AW125: User status word 1 | AX125: 6.50 | AY125: 1=1 | AZ125: FW Manual | BA125: Parameter save | BB125: 96.16 | BC125: 1=Save | BD125: FW Manual
W126: Used speed reference | X126: 24.01 | Y126: 20000=Par46.01 | AC126: Used speed reference | AD126: 24.01 | AE126: 20000=Par46.01 | AI126: Used speed reference | AJ126: 24.01 | AK126: 20000=Par46.01 | AO126: Adaptive program status | AP126: 7.30 | AQ126: 1=1 | AR126: 1=1 | AW126: Drive rating ID set | AX126: 7.03 | AY126: 1=1 | AZ126: FW Manual | BA126: Clear fault and event logger | BB126: 96.51 | BC126: 1=reset | BD126: FW Manual
W127: Used speed feedback | X127: 24.02 | Y127: 20000=Par46.01 | AC127: Used speed feedback | AD127: 24.02 | AE127: 20000=Par46.01 | AI127: Used speed feedback | AJ127: 24.02 | AK127: 20000=Par46.01 | AO127: DI delayed status | AP127: 10.02 | AQ127: 1=1 | AR127: 1=1 | AW127: Firmware version | AX127: 7.05 | AY127: 1=1 | AZ127: FW Manual | BA127: Disable adaptive program | BB127: 96.70 | BC127: 1=disable | BD127: FW Manual
W128: Speed error filtered | X128: 24.03 | Y128: 20000=Par46.01 | AC128: Speed error filtered | AD128: 24.03 | AE128: 20000=Par46.01 | AI128: Speed error filtered | AJ128: 24.03 | AK128: 20000=Par46.01 | AO128: RO status | AP128: 10.21 | AQ128: 1=1 | AR128: 1=1 | AW128: Adaptive program status | AX128: 7.30 | AY128: 1=1 | AZ128: FW Manual | BA128: Nom Mains Volt | BB128: 99.10 | BC128: 10=1V | BD128: FW Manual
W129: Frequency ref ramp input | X129: 28.01 | Y129: 20000=Par46.02 | AC129: Frequency ref ramp input | AD129: 28.01 | AE129: 20000=Par46.02 | AI129: Frequency ref ramp input | AJ129: 28.01 | AK129: 20000=Par46.02 | AO129: DIO delayed status | AP129: 11.02 | AQ129: 1=1 | AR129: 1=1 | AW129: DI delayed status | AX129: 10.02 | AY129: 1=1 | AZ129: FW Manual | BA129: M1 nom Arm Amp | BB129: 99.11 | BC129: 1=1A | BD129: FW Manual
W130: Frequency ref ramp output | X130: 28.02 | Y130: 20000=Par46.02 | AC130: Frequency ref ramp output | AD130: 28.02 | AE130: 20000=Par46.02 | AI130: Frequency ref ramp output | AJ130: 28.02 | AK130: 20000=Par46.02 | AO130: AI1 actual value | AP130: 12.11 | AQ130: 1000=1mAorV | AR130: 1000=1 | AW130: RO status | AX130: 10.21 | AY130: 1=1 | AZ130: FW Manual | BA130: M1 nom voltage | BB130: 99.12 | BC130: 10=1V | BD130: FW Manual
W131: Frequency ref unlimited | X131: 28.97 | Y131: 20000=Par46.02 | AC131: Frequency ref unlimited | AD131: 28.97 | AE131: 20000=Par46.02 | AI131: Frequency ref unlimited | AJ131: 28.97 | AK131: 20000=Par46.02 | AO131: AI2 actual value | AP131: 12.21 | AQ131: 1000=1mAorV | AR131: 1000=1 | AW131: DIO delayed status | AX131: 11.02 | AY131: 1=1 | AZ131: FW Manual | BA131: M1 nom field Amp | BB131: 99.13 | BC131: 10=1A | BD131: FW Manual
W132: Limit word 1 | X132: 30.01 | Y132: 1=1 | AC132: Limit word 1 | AD132: 30.01 | AE132: 1=1 | AI132: Limit word 1 | AJ132: 30.01 | AK132: 1=1 | AO132: AO1 actual value | AP132: 13.11 | AQ132: 1=1mA | AR132: 1000=1mA | AW132: AI1 actual value | AX132: 12.11 | AY132: 1000=1mAorV | AZ132: FW Manual | BA132: M1 nom speed | BB132: 99.14 | BC132: 20000=Par46.01 | BD132: FW Manual
W133: Torque limit status | X133: 30.02 | Y133: 1=1 | AC133: Torque limit status | AD133: 30.02 | AE133: 1=1 | AI133: Torque limit status | AJ133: 30.02 | AK133: 1=1 | AO133: AO2 actual value | AP133: 13.21 | AQ133: 1=1mA | AR133: 1000=1mA | AW133: AI2 actual value | AX133: 12.21 | AY133: 1000=1mAorV | AZ133: FW Manual | BA133: Tuning Request | BB133: 99.20 | BC133: 1=1 | BD133: FW Manual
W134: Supervision status | X134: 32.01 | Y134: 1=1 | AC134: Supervision status | AD134: 32.01 | AE134: 1=1 | AI134: Supervision status | AJ134: 32.01 | AK134: 1=1 | AO134: Speed ref unlimited | AP134: 22.01 | AQ134: 20000=Par46.01 | AR134: 100=1rpm | AW134: AO1 actual value | AX134: 13.11 | AY134: 1000=1mAorV | AZ134: FW Manual
W135: Motor estimated temperature | X135: 35.01 | Y135: 1=1º | AC135: Motor estimated temperature | AD135: 35.01 | AE135: 1=1º | AI135: Motor estimated temperature | AJ135: 35.01 | AK135: 1=1º | AO135: Speed ref ramp input | AP135: 23.01 | AQ135: 20000=Par46.01 | AR135: 100=1rpm | AW135: AO2 actual value | AX135: 13.21 | AY135: 1000=1V | AZ135: FW Manual
W136: Measured temperature 1 | X136: 35.02 | Y136: 1=1º | AC136: Measured temperature 1 | AD136: 35.02 | AE136: 1=1º | AI136: Measured temperature 1 | AJ136: 35.02 | AK136: 1=1º | AO136: Speed ref ramp output | AP136: 23.02 | AQ136: 20000=Par46.01 | AR136: 100=1rpm | AW136: Speed ref unlimited | AX136: 22.01 | AY136: 20000=Par46.01 | AZ136: FW Manual
W137: Measured temperature 2 | X137: 35.03 | Y137: 1=1º | AC137: Measured temperature 2 | AD137: 35.03 | AE137: 1=1º | AI137: Measured temperature 2 | AJ137: 35.03 | AK137: 1=1º | AO137: Used speed reference | AP137: 24.01 | AQ137: 20000=Par46.01 | AR137: 100=1rpm | AW137: Speed ref ramp input | AX137: 23.01 | AY137: 20000=Par46.01 | AZ137: FW Manual
W138: ULC output status word | X138: 37.01 | Y138: 1=1 | AC138: ULC output status word | AD138: 37.01 | AE138: 1=1 | AI138: ULC output status word | AJ138: 37.01 | AK138: 1=1 | AO138: Used speed feedback | AP138: 24.02 | AQ138: 20000=Par46.01 | AR138: 100=1rpm | AW138: Speed ref ramp output | AX138: 23.02 | AY138: 20000=Par46.01 | AZ138: FW Manual
W139: Process PID output actual | X139: 40.01 | Y139: 1=1% | AC139: Process PID output actual | AD139: 40.01 | AE139: 1=1% | AI139: Process PID output actual | AJ139: 40.01 | AK139: 1=1% | AO139: Speed error filtered | AP139: 24.03 | AQ139: 20000=Par46.01 | AR139: 100=1rpm | AW139: Used speed reference | AX139: 24.01 | AY139: 20000=Par46.01 | AZ139: FW Manual
W140: Process PID feedback actual | X140: 40.02 | Y140: 1=1unit | AC140: Process PID feedback actual | AD140: 40.02 | AE140: 1=1unit | AI140: Process PID feedback actual | AJ140: 40.02 | AK140: 1=1unit | AO140: Frequency ref ramp input | AP140: 28.01 | AQ140: 20000=Par46.02 | AR140: 100=1Hz | AW140: Used speed feedback | AX140: 24.02 | AY140: 20000=Par46.01 | AZ140: FW Manual
W141: Process PID setpoint actual | X141: 40.03 | Y141: 1=1unit | AC141: Process PID setpoint actual | AD141: 40.03 | AE141: 1=1unit | AI141: Process PID setpoint actual | AJ141: 40.03 | AK141: 1=1unit | AO141: Frequency ref ramp output | AP141: 28.02 | AQ141: 20000=Par46.02 | AR141: 100=1Hz | AW141: Speed error filtered | AX141: 24.03 | AY141: 20000=Par46.01 | AZ141: FW Manual
T142: Custom Input | U142: Custom Output | W142: Process PID status word | X142: 40.06 | Y142: 1=1 | AC142: Process PID status word | AD142: 40.06 | AE142: 1=1 | AI142: Process PID status word | AJ142: 40.06 | AK142: 1=1 | AO142: Frequency ref unlimited | AP142: 28.97 | AQ142: 20000=Par46.02 | AR142: 100=1Hz | AW142: Torque reference used | AX142: 26.02 | AY142: 10000=Par46.03 | AZ142: FW Manual
T143: =IF($J$14="NO",#REF!,#REF!) ->  | U143: =IF($J$14="NO",#REF!,#REF!) ->  | W143: Braking resistor temperature | X143: 43.01 | Y143: 1=1% | AC143: Braking resistor temperature | AD143: 43.01 | AE143: 1=1% | AI143: Braking resistor temperature | AJ143: 43.01 | AK143: 1=1% | AO143: Limit word 1 | AP143: 30.01 | AQ143: 1=1 | AR143: 1=1 | AW143: Motor peak current | AX143: 27.06 | AY143: 100=1% | AZ143: FW Manual
T144: =IF($J$14="NO",#REF!,#REF!) ->  | U144: =IF($J$14="NO",#REF!,#REF!) ->  | W144: Brake control status | X144: 44.01 | Y144: 1=1 | AC144: Brake control status | AD144: 44.01 | AE144: 1=1 | AI144: Brake control status | AJ144: 44.01 | AK144: 1=1 | AO144: Torque limit status | AP144: 30.02 | AQ144: 1=1 | AR144: 1=1 | AW144: Limit word 1 | AX144: 30.01 | AY144: 1=1 | AZ144: FW Manual
T145: =IF($J$14="NO",#REF!,#REF!) ->  | U145: =IF($J$14="NO",#REF!,#REF!) ->  | W145: DataStorage 1 int32 | X145: 47.11 | Y145: 1=1 | AC145: DataStorage 1 int32 | AD145: 47.11 | AE145: 1=1 | AI145: DataStorage 1 int32 | AJ145: 47.11 | AK145: 1=1 | AO145: Supervision status | AP145: 32.01 | AQ145: 1=1 | AR145: 1=1 | AW145: Torque limit status | AX145: 30.02 | AY145: 1=1 | AZ145: FW Manual
T146: =IF($J$14="NO",#REF!,#REF!) ->  | U146: =IF($J$14="NO",#REF!,#REF!) ->  | W146: DataStorage 2 int32 | X146: 47.12 | Y146: 1=1 | AC146: DataStorage 2 int32 | AD146: 47.12 | AE146: 1=1 | AI146: DataStorage 2 int32 | AJ146: 47.12 | AK146: 1=1 | AO146: Motor estimated temperature | AP146: 35.01 | AQ146: 1=1º | AR146: 1=1º | AW146: Supervision status | AX146: 32.01 | AY146: 1=1 | AZ146: FW Manual
T147: =IF($J$14="NO",#REF!,#REF!) ->  | U147: =IF($J$14="NO",#REF!,#REF!) ->  | W147: DataStorage 3 int32 | X147: 47.13 | Y147: 1=1 | AC147: DataStorage 3 int32 | AD147: 47.13 | AE147: 1=1 | AI147: DataStorage 3 int32 | AJ147: 47.13 | AK147: 1=1 | AO147: Measured temperature 1 | AP147: 35.02 | AQ147: 1=1º | AR147: 1=1º | AW147: Motor estimated temperature | AX147: 35.01 | AY147: 1=1ºCorF | AZ147: FW Manual
T148: =IF($J$14="NO",#REF!,#REF!) ->  | U148: =IF($J$14="NO",#REF!,#REF!) ->  | W148: DataStorage 4 int32 | X148: 47.14 | Y148: 1=1 | AC148: DataStorage 4 int32 | AD148: 47.14 | AE148: 1=1 | AI148: DataStorage 4 int32 | AJ148: 47.14 | AK148: 1=1 | AO148: Measured temperature 2 | AP148: 35.03 | AQ148: 1=1º | AR148: 1=1º | AW148: Measured temperature 1 | AX148: 35.02 | AY148: 1=1ºCorF | AZ148: FW Manual
T149: =IF($J$14="NO",#REF!,#REF!) ->  | U149: =IF($J$14="NO",#REF!,#REF!) ->  | W149: DataStorage 1 int16 | X149: 47.21 | Y149: 1=1 | AC149: DataStorage 1 int16 | AD149: 47.21 | AE149: 1=1 | AI149: DataStorage 1 int16 | AJ149: 47.21 | AK149: 1=1 | AO149: ULC output status word | AP149: 37.01 | AQ149: 1=1 | AR149: 1=1 | AW149: Measured temperature 2 | AX149: 35.04 | AY149: 1=1ºCorF | AZ149: FW Manual
T150: =IF($J$14="NO",#REF!,#REF!) ->  | U150: =IF($J$14="NO",#REF!,#REF!) ->  | W150: DataStorage 2 int16 | X150: 47.22 | Y150: 1=1 | AC150: DataStorage 2 int16 | AD150: 47.22 | AE150: 1=1 | AI150: DataStorage 2 int16 | AJ150: 47.22 | AK150: 1=1 | AO150: Process PID output actual | AP150: 40.01 | AQ150: 1=1% | AR150: 100=1unit | AW150: Motor ambient temp | AX150: 35.50 | AY150: 1=1ºCorF | AZ150: FW Manual
T151: =IF($J$14="NO",#REF!,#REF!) ->  | U151: =IF($J$14="NO",#REF!,#REF!) ->  | W151: DataStorage 3 int16 | X151: 47.23 | Y151: 1=1 | AC151: DataStorage 3 int16 | AD151: 47.23 | AE151: 1=1 | AI151: DataStorage 3 int16 | AJ151: 47.23 | AK151: 1=1 | AO151: Process PID feedback actual | AP151: 40.02 | AQ151: 1=1unit | AR151: 100=1unit | AW151: ULC output status word | AX151: 37.01 | AY151: 1=1 | AZ151: FW Manual
T152: =IF($J$14="NO",#REF!,#REF!) ->  | U152: =IF($J$14="NO",#REF!,#REF!) ->  | W152: DataStorage 4 int16 | X152: 47.24 | Y152: 1=1 | AC152: DataStorage 4 int16 | AD152: 47.24 | AE152: 1=1 | AI152: DataStorage 4 int16 | AJ152: 47.24 | AK152: 1=1 | AO152: Process PID setpoint actual | AP152: 40.03 | AQ152: 1=1unit | AR152: 100=1unit | AW152: Process PID output actual | AX152: 40.01 | AY152: 1=1% | AZ152: FW Manual
W153: Limit to limit control status | X153: 76.01 | Y153: 1=1 | AC153: Limit to limit control status | AD153: 76.01 | AE153: 1=1 | AI153: PFC status | AJ153: 76.01 | AK153: 1=1 | AO153: Process PID status word | AP153: 40.06 | AQ153: 1=1 | AR153: 1=1 | AW153: Process PID feedback actual | AX153: 40.02 | AY153: 1=1unit | AZ153: FW Manual
W154: Motor Position | X154: 90.02 | Y154: 32767=1rev | AC154: Motor Position | AD154: 90.02 | AE154: 32767=1rev | AI154: Multipump system status | AJ154: 76.02 | AK154: 1=1 | AO154: Braking resistor temperature | AP154: 43.01 | AQ154: 1=1% | AR154: 10=1% | AW154: Process PID setpoint actual | AX154: 40.03 | AY154: 1=1unit | AZ154: FW Manual
W155: Encoder 1 position | X155: 90.11 | Y155: 32767=1rev | AC155: Encoder 1 position | AD155: 90.11 | AE155: 32767=1rev | AI155: Pump status 1 | AJ155: 76.11 | AK155: 1=1 | AO155: Brake control status | AP155: 44.01 | AQ155: 1=1 | AR155: 1=1 | AW155: Process PID status word | AX155: 40.06 | AY155: 1=1 | AZ155: FW Manual
W156: Encoder 1 revol extension | X156: 90.13 | Y156: 1=1rev | AC156: Encoder 1 revol extension | AD156: 90.13 | AE156: 1=1rev | AI156: Pump status 2 | AJ156: 76.12 | AK156: 1=1 | AO156: DataStorage 1 int32 | AP156: 47.11 | AQ156: 1=1 | AR156: 1=1 | AW156: Brake control status | AX156: 44.01 | AY156: 1=1 | AZ156: FW Manual
W157: Last ID run performed | X157: 99.14 | Y157: 1=1 | AC157: Last ID run performed | AD157: 99.14 | AE157: 1=1 | AI157: Pump status 3 | AJ157: 76.13 | AK157: 1=1 | AO157: DataStorage 2 int32 | AP157: 47.12 | AQ157: 1=1 | AR157: 1=1 | AW157: M1 spd scaling act | AX157: 46.02 | AY157: 1=1rpm | AZ157: FW Manual
AI158: Pump status 4 | AJ158: 76.14 | AK158: 1=1 | AO158: DataStorage 3 int32 | AP158: 47.13 | AQ158: 1=1 | AR158: 1=1 | AW158: M1 torq scaling act | AX158: 46.04 | AY158: 100=1% | AZ158: FW Manual
AI159: Pump/fan 1 run time | AJ159: 77.11 | AK159: 1=1h | AO159: DataStorage 4 int32 | AP159: 47.14 | AQ159: 1=1 | AR159: 1=1 | AW159: DataStorage 1 int32 | AX159: 47.11 | AY159: 1=1 | AZ159: FW Manual
AI160: Pump/fan 2 run time | AJ160: 77.12 | AK160: 1=1h | AO160: DataStorage 1 int16 | AP160: 47.21 | AQ160: 1=1 | AR160: 1=1 | AW160: DataStorage 2 int32 | AX160: 47.12 | AY160: 1=1 | AZ160: FW Manual
AI161: Pump/fan 3 run time | AJ161: 77.13 | AK161: 1=1h | AO161: DataStorage 2 int16 | AP161: 47.22 | AQ161: 1=1 | AR161: 1=1 | AW161: DataStorage 3 int32 | AX161: 47.13 | AY161: 1=1 | AZ161: FW Manual
AI162: Pump/fan 4 run time | AJ162: 77.14 | AK162: 1=1h | AO162: DataStorage 3 int16 | AP162: 47.23 | AQ162: 1=1 | AR162: 1=1 | AW162: DataStorage 4 int32 | AX162: 47.14 | AY162: 1=1 | AZ162: FW Manual
AI163: Last ID run performed | AJ163: 99.14 | AK163: 1=1 | AO163: DataStorage 4 int16 | AP163: 47.24 | AQ163: 1=1 | AR163: 1=1 | AW163: DataStorage 1 int16 | AX163: 47.21 | AY163: 1=1 | AZ163: FW Manual
AO164: Motor Position | AP164: 90.02 | AQ164: 32767=1rev | AR164: 100000000=1rev | AW164: DataStorage 2 int16 | AX164: 47.22 | AY164: 1=1 | AZ164: FW Manual
AO165: Encoder 1 position | AP165: 90.11 | AQ165: 32767=1rev | AR165: 100000000=1rev | AW165: DataStorage 3 int16 | AX165: 47.23 | AY165: 1=1 | AZ165: FW Manual
AO166: Encoder 1 revol extension | AP166: 90.13 | AQ166: 1=1rev | AR166: 1=1rev | AW166: DataStorage 4 int16 | AX166: 47.24 | AY166: 1=1 | AZ166: FW Manual
AO167: Actual checksum | AP167: 96.53 | AQ167: 1=1 | AR167: 1=1 | AW167: Motor Position | AX167: 90.02 | AY167: 32767=1rev | AZ167: FW Manual
AO168: Last ID run performed | AP168: 99.14 | AQ168: 1=1 | AR168: 1=1 | AW168: Load Position scaled | AX168: 90.05 | AY168: 1=1 | AZ168: FW Manual
AW169: Motor Position scaled | AX169: 90.06 | AY169: 1=1 | AZ169: FW Manual
AW170: Load pos scaled int | AX170: 90.07 | AY170: 1=1 | AZ170: FW Manual
W175: ACS380 | AC175: ACS480 | AI175: ACS580 | AO175: ACS880 | AW175: DCS880
W176: Input Signal # | Z176: Output Signal # | AC176: Input Signal # | AF176: Output Signal # | AI176: Input Signal # | AL176: Output Signal # | AO176: Input Signal # | AQ176: In Scaling16or32 | AS176: Output Signal # | AU176: Out Scaling16or32 | AW176: Input Signal # | AY176: In Scaling16or32 | BA176: Output Signal # | BC176: Out Scaling16or32
W177: 52.01= | X177: =IFERROR(VLOOKUP(T143,$W$66:$Y$157,2,FALSE),T143) ->  | Y177: =IF(X177=0,"NA",IF(X177="NA","NA",IFERROR(VLOOKUP(T143,$W$66:$Y$157,3,FALSE),"FW Manual"))) ->  | Z177: 53.01= | AA177: =IFERROR(VLOOKUP(U143,$Z$66:$AB$157,2,FALSE),U143) ->  | AB177: =IF(AA177=0,"NA",IF(AA177="NA","NA",IFERROR(VLOOKUP(U143,$Z$66:$AB$157,3,FALSE),"FW Manual"))) ->  | AC177: 52.01= | AD177: =IFERROR(VLOOKUP(T143,$AC$66:$AE$157,2,FALSE),T143) ->  | AE177: =IF(AD177=0,"NA",IF(AD177="NA","NA",IFERROR(VLOOKUP(T143,$AC$66:$AE$157,3,FALSE),"FW Manual"))) ->  | AF177: 53.01= | AG177: =IFERROR(VLOOKUP(U143,$AF$66:$AH$157,2,FALSE),U143) ->  | AH177: =IF(AG177=0,"NA",IF(AG177="NA","NA",IFERROR(VLOOKUP(U143,$AF$66:$AH$157,3,FALSE),"FW Manual"))) ->  | AI177: 52.01= | AJ177: =IFERROR(VLOOKUP(T143,$AI$66:$AK$163,2,FALSE),T143) ->  | AK177: =IF(AJ177=0,"NA",IF(AJ177="NA","NA",IFERROR(VLOOKUP(T143,$AI$66:$AK$163,3,FALSE),"FW Manual"))) ->  | AL177: 53.01= | AM177: =IFERROR(VLOOKUP(U143,$AL$66:$AN$163,2,FALSE),U143) ->  | AN177: =IF(AM177=0,"NA",IF(AM177="NA","NA",IFERROR(VLOOKUP(U143,$AL$66:$AN$163,3,FALSE),"FW Manual"))) ->  | AO177: 52.01= | AP177: =IFERROR(VLOOKUP(T143,$AO$66:$AQ$168,2,FALSE),T143) ->  | AQ177: =IF(AP177=0,"NA",IF(AP177="NA","NA",IFERROR(VLOOKUP(T143,$AO$66:$AR$168,$AQ$188,FALSE),"FW Manual"))) ->  | AS177: 53.01= | AT177: =IFERROR(VLOOKUP(U143,$AS$66:$AU$168,2,FALSE),U143) ->  | AU177: =IF(AT177=0,"NA",IF(AT177="NA","NA",IFERROR(VLOOKUP(U143,$AS$66:$AV$168,$AQ$188,FALSE),"FW Manual"))) ->  | AW177: 52.01= | AX177: =IFERROR(VLOOKUP(T143,$AW$66:$AY$170,2,FALSE),T143) ->  | AY177: =IF(AX177=0,"NA",IF(AX177="NA","NA",IFERROR(VLOOKUP(T143,$AW$66:$AZ$170,$AQ$188,FALSE),"FW Manual"))) ->  | BA177: 53.01= | BB177: =IFERROR(VLOOKUP(U143,$BA$66:$BC$168,2,FALSE),U143) ->  | BC177: =IF(BB177=0,"NA",IF(BB177="NA","NA",IFERROR(VLOOKUP(U143,$BA$66:$BD$168,$AQ$188,FALSE),"FW Manual"))) -> 
W178: 52.02= | Z178: 53.02= | AC178: 52.02= | AF178: 53.02= | AI178: 52.02= | AL178: 53.02= | AO178: 52.02= | AS178: 53.02= | AW178: 52.02= | AX178: =IFERROR(VLOOKUP(T144,$AW$66:$AY$168,2,FALSE),T144) ->  | BA178: 53.02=
W179: 52.03= | Z179: 53.03= | AC179: 52.03= | AF179: 53.03= | AI179: 52.03= | AL179: 53.03= | AO179: 52.03= | AS179: 53.03= | AW179: 52.03= | BA179: 53.03=
W180: 52.04= | Z180: 53.04= | AC180: 52.04= | AF180: 53.04= | AI180: 52.04= | AL180: 53.04= | AO180: 52.04= | AS180: 53.04= | AW180: 52.04= | BA180: 53.04=
W181: 52.05= | Z181: 53.05= | AC181: 52.05= | AF181: 53.05= | AI181: 52.05= | AL181: 53.05= | AO181: 52.05= | AS181: 53.05= | AW181: 52.05= | BA181: 53.05=
W182: 52.06= | Z182: 53.06= | AC182: 52.06= | AF182: 53.06= | AI182: 52.06= | AL182: 53.06= | AO182: 52.06= | AS182: 53.06= | AW182: 52.06= | BA182: 53.06=
W183: 52.07= | Z183: 53.07= | AC183: 52.07= | AF183: 53.07= | AI183: 52.07= | AL183: 53.07= | AO183: 52.07= | AS183: 53.07= | AW183: 52.07= | BA183: 53.07=
W184: 52.08= | Z184: 53.08= | AC184: 52.08= | AF184: 53.08= | AI184: 52.08= | AL184: 53.08= | AO184: 52.08= | AS184: 53.08= | AW184: 52.08= | BA184: 53.08=
W185: 52.09= | Z185: 53.09= | AC185: 52.09= | AF185: 53.09= | AI185: 52.09= | AL185: 53.09= | AO185: 52.09= | AS185: 53.09= | AW185: 52.09= | BA185: 53.09=
W186: 52.10= | Z186: 53.10= | AC186: 52.10= | AF186: 53.10= | AI186: 52.10= | AL186: 53.10= | AO186: 52.10= | AS186: 53.10= | AW186: 52.10= | BA186: 53.10=
X188: Below are the Inputs and Outputs based on the selected VFD in cell I9 | AQ188: =IF($M$12="32 Bit",4,3) -> 3
W189: Inputs | Y189: Scaling | AC189: Outputs | AE189: Scaling
W190: Input 1 | X190: =IF($I$9="ACS380",X177,IF($I$9="ACS480",AD177,IF($I$9="ACS580",AJ177,IF($I$9="ACS880",AP177,IF($I$9="DCS800",AX177,AJ177))))) ->  | Y190: =IF($I$9="ACS380",Y177,IF($I$9="ACS480",AE177,IF($I$9="ACS580",AK177,IF($I$9="ACS880",AQ177,IF($I$9="DCS880",AY177,AK177))))) ->  | AC190: Output 1 | AD190: =IF($I$9="ACS380",AA177,IF($I$9="ACS480",AG177,IF($I$9="ACS580",AM177,IF($I$9="ACS880",AT177,IF($I$9="DCS880",BB177,AM177))))) ->  | AE190: =IF($I$9="ACS380",AB177,IF($I$9="ACS480",AH177,IF($I$9="ACS580",AN177,IF($I$9="ACS880",AU177,IF($I$9="DCS880",BC177,AN177))))) -> 
W191: Input 2 | AC191: Output 2
W192: Input 3 | AC192: Output 3
W193: Input 4 | X193: =IF($I$9="ACS380",X180,IF($I$9="ACS480",AD180,IF($I$9="ACS580",AJ180,IF($I$9="ACS880",AP180,IF($I$9="DCS800",AX180,AJ180))))) ->  | AC193: Output 4
W194: Input 5 | AC194: Output 5
W195: Input 6 | AC195: Output 6
W196: Input 7 | AC196: Output 7
W197: Input 8 | AC197: Output 8
W198: Input 9 | AC198: Output 9
W199: Input 10 | AC199: Output 10
AD205: input # | AE205: input param conversion | AG205: Output # | AH205: output param conversion
V206: Rockwell Parameter Name | W206: Input Parameters | X206: Input Scaling | Y206: 755 Output Parameter Name | Z206: Output Parameters | AA206: Output scaling | AD206: input 1 | AE206: =VLOOKUP(R24,V207:W248,2,) -> 1.11 | AG206: output 1 | AH206: =VLOOKUP(U24,Y207:Z236,2,) -> 
Q207: IF('Profile Selection'!$P$9="Scalar (V/Hz)",28.72,23.12) | U207: 755 | V207: Output Frequency | W207: 1.06 | X207: 100=1Hz | Y207: Accel Time 1 | Z207: =IF('Profile Selection'!$P$9="Scalar (V/Hz)",28.72,23.12) -> 23.12 | AA207: 10=1s | AD207: input 2 | AE207: =VLOOKUP(R25,V207:W248,2,) -> 1.07 | AG207: output 2 | AH207: =VLOOKUP(U25,Y207:Z236,2,) -> 
V208: Commanded SpdRef | W208: 3.05 | X208: 100=1rpm | Y208: Accel Time 2 | Z208: =IF('Profile Selection'!$P$9="Scalar (V/Hz)",28.73,23.13) -> 23.13 | AA208: 10=1s | AD208: input 3 | AE208: =VLOOKUP(R26,V207:W248,2,) ->  | AG208: output 3 | AH208: =VLOOKUP(U26,Y207:Z236,2,) -> 
Q209: IF($F$17="Powerflex525",$Y$225:$Y$235,$Y$207:$Y220) | V209: Mtr Vel Fdbk | W209: 1.01 | X209: None | Y209: Decel Time 1 | Z209: 23.13 | AA209: 10=1s | AD209: input 4 | AE209: =VLOOKUP(R27,V207:W248,2,) ->  | AG209: output 4 | AH209: =VLOOKUP(U27,Y207:Z236,2,) -> 
V210: Output Current | W210: 1.07 | X210: 100=1A | Y210: Decel Time 2 | Z210: 23.15 | AA210: 10=1s | AD210: input 5 | AE210: =VLOOKUP(R28,V207:W248,2,) ->  | AG210: output 5 | AH210: =VLOOKUP(U28,Y207:Z236,2,) -> 
V211: Output Voltage | W211: 1.13 | X211: 1=1V | Y211: Preset Speed 1 | Z211: =IF('Profile Selection'!$P$9="Scalar (V/Hz)",28.22,22.26) -> 22.26 | AA211: 100=1rpm | AD211: input 6 | AE211: =VLOOKUP(R29,V207:W248,2,) ->  | AG211: output 6 | AH211: =VLOOKUP(U29,Y207:Z236,2,) -> 
V212: Output Power | W212: 1.14 | X212: 100=1unit | Y212: Preset Speed 2 | Z212: =IF('Profile Selection'!$P$9="Scalar (V/Hz)",28.23,22.27) -> 22.27 | AA212: 100=1rpm | AD212: input 7 | AE212: =VLOOKUP(R30,V207:W248,2,) ->  | AG212: output 7 | AH212: =VLOOKUP(U30,Y207:Z236,2,) -> 
V213: Elapsed kWH | W213: 1.2 | X213: 1=1kWh | Y213: Preset Speed 3 | Z213: =IF('Profile Selection'!$P$9="Scalar (V/Hz)",28.24,22.28) -> 22.28 | AA213: 100=1rpm | AD213: input 8 | AE213: =VLOOKUP(R31,V207:W248,2,) ->  | AG213: output 8 | AH213: =VLOOKUP(U31,Y207:Z236,2,) -> 
V214: Elapsed mWH | W214: 1.19 | X214: 1=1MWh | Y214: Preset Speed 4 | Z214: =IF('Profile Selection'!$P$9="Scalar (V/Hz)",28.25,22.29) -> 22.29 | AA214: 100=1rpm | AD214: input 9 | AE214: =VLOOKUP(R32,V207:W248,2,) ->  | AG214: output 9 | AH214: =VLOOKUP(U32,Y207:Z236,2,) -> 
V215: Elapsed Run Time | W215: 5.02 | X215: 1=1d | Y215: Preset Speed 5 | Z215: =IF('Profile Selection'!$P$9="Scalar (V/Hz)",28.26,22.3) -> 22.3 | AA215: 100=1rpm | AD215: input 10 | AE215: =VLOOKUP(R33,V207:W248,2,) ->  | AG215: output 10 | AH215: =VLOOKUP(U33,Y207:Z236,2,) -> 
V216: Motor NP Volts | W216: 99.07 | X216: 10=1V | Y216: Preset Speed 6 | Z216: =IF('Profile Selection'!$P$9="Scalar (V/Hz)",28.27,22.31) -> 22.31 | AA216: 100=1rpm
V217: Motor NP Amps | W217: 99.06 | X217: 1=1A | Y217: Preset Speed 7 | Z217: =IF('Profile Selection'!$P$9="Scalar (V/Hz)",28.28,22.32) -> 22.32 | AA217: 100=1rpm
V218: Motor NP Hertz | W218: 99.08 | X218: 10=1Hz | Y218: Jog Speed 1 | Z218: 20.26 | AA218: 1=1
V219: Motor NP RPM | W219: 99.09 | X219: 1=1rpm | Y219: Jog Speed 2 | Z219: 20.27 | AA219: 1=1
V220: Digital In Sts | W220: 10.01 | X220: 1=1 | Y220: Jog Acc Dec Time | Z220: 23.20/23.21 | AA220: 10=1s
V221: Drive Temp C. | W221: 5.11 | X221: 1=1%
V222: Maximum Frequency | W222: 30.14 | X222: 1=1Hz
V223: DC Bus Volts | W223: 1.11 | X223: 1=1V
V224: Rockwell Parameters | W224: Input Parameters | X224: Input Scaling | Y224: 525 Output Parameter Name | Z224: Output Parameters | AA224: Output scaling
U225: 525 | V225: Output Freq | W225: 1.06 | X225: 100=1Hz | Y225: Accel Time 1 | Z225: =IF('Profile Selection'!$P$9="Scalar (V/Hz)",28.72,23.12) -> 23.12 | AA225: 10=1s
V226: Commanded Freq | W226: 3.05 | X226: 100=1Hz | Y226: Decel Time 1 | Z226: =IF('Profile Selection'!$P$9="Scalar (V/Hz)",28.73,23.13) -> 23.13 | AA226: 10=1s
V227: Output Current | W227: 1.07 | X227: 100=1A | Y227: Preset Freq 1 | Z227: =IF('Profile Selection'!$P$9="Scalar (V/Hz)",28.22,22.26) -> 22.26 | AA227: 100=1rpm
V228: Output Voltage | W228: 1.13 | X228: 1=1V | Y228: Preset Freq 2 | Z228: =IF('Profile Selection'!$P$9="Scalar (V/Hz)",28.23,22.27) -> 22.27 | AA228: 100=1rpm
V229: DC Bus Voltage | W229: 1.11 | X229: 1=1V | Y229: Preset Freq 3 | Z229: =IF('Profile Selection'!$P$9="Scalar (V/Hz)",28.24,22.28) -> 22.28 | AA229: 100=1rpm
V230: Drive Status | W230: 6.16/6.17 | X230: 1=1 | Y230: Preset Freq 4 | Z230: =IF('Profile Selection'!$P$9="Scalar (V/Hz)",28.25,22.29) -> 22.29 | AA230: 100=1rpm
V231: Fault 1 Code | W231: 4.01 | X231: 1=1 | Y231: Preset Freq 5 | Z231: =IF('Profile Selection'!$P$9="Scalar (V/Hz)",28.26,22.3) -> 22.3 | AA231: 100=1rpm
V232: Fault 2 Code | W232: 4.02 | X232: 1=1 | Y232: Preset Freq 6 | Z232: =IF('Profile Selection'!$P$9="Scalar (V/Hz)",28.27,22.31) -> 22.31 | AA232: 100=1rpm
V233: Fault 3 Code | W233: 4.03 | X233: 1=1 | Y233: Preset Freq 45454 | Z233: =IF('Profile Selection'!$P$9="Scalar (V/Hz)",28.28,22.32) -> 22.32 | AA233: 100=1rpm
V234: Control Source | W234: 20.11 | X234: 1=1 | Y234: Jog Frequency | Z234: 22.42 | AA234: 100=1rpm
V235: Dig In Status | W235: 10.01 | X235: 1=1 | Y235: Jog Accel/Decel | Z235: 23.20/23.21 | AA235: 10=1s
V236: Output Speed | W236: 1.01 | X236: 100=1rpm
V237: Output Power | W237: 1.14 | X237: 100=1kWh
V238: Elapsed Run Time | W238: 5.02 | X238: 1=1d
V239: Elapsed kWH | W239: 1.2 | X239: 10=1kWh
... 33 more rows

Sheet ODVA ACDC Basic Profile (hidden)
A1: Ethernet IP ODVA AC/DC Drive Basic Profile | F1: FENA-11/21 Configuration Parameters (Group 50 & 51)
F2: Parameter Name | G2: Parameter | H2: Parameter Setting | J2: Rockwell Logix 5000 Software Configuration to add ABB VFDs as a new Ethernet IP Device
A3: VFD Signals Controlled by PLC over EIP | F3: FBA A enable | G3: 50.01 | H3: Please Select.. | J3: Note: The configuration below is specific to the ODVA AC/DC Profile and the data
A4: Signal | B4: No/Yes | C4: Parameter | D4: Parameter Setting | F4: FBA A comm loss func | G4: 50.02 | H4: Fault | J4: supplied on the "Profile Selection" Tab of this Spreadsheet Tool. This PLC configuration
A5: Run Command | B5: YES | C5: 20.01 | D5: =VLOOKUP($B$5,$B$69:$D$70,$C$66) -> Fieldbus A | F5: FBA ref1 type | G5: 50.04 | H5: Auto | J5: matches the parameters defined on this page and will deliver successful Communications
A6: Fault Reset | B6: YES | C6: =IF('Profile Selection'!I9="DCS880",20.13,31.11) -> 31.11 | D6: =VLOOKUP($B$6,$B$71:$D$72,$C$66) -> "No Setting Required" | F6: FBA ref2 type | G6: 50.05 | H6: Auto | J6: between the PLC and the ABB VFD via Ethernet IP
A7: =IF('Profile Selection'!$P$9="Scalar (V/Hz)","Frequency Reference","Speed Reference") -> Speed Reference | B7: YES | C7: =IF('Profile Selection'!$P$9="Scalar (V/Hz)",28.11,22.11) -> 22.11 | D7: =VLOOKUP($B$7,$B$73:$D$74,$C$66) -> FB A ref1 | F7: FBA actual 1 type | G7: 50.07 | H7: =IF($B$7="YES", "Auto", "Speed") -> Auto
A8: Torque Reference | B8: NO | C8: 26.11 | D8: =VLOOKUP($B$8,$B$75:$D$76,$C$66) -> "User Defines Setting" | F8: FBA actual 2 type | G8: 50.08 | H8: =IF(AND($B$8="NO", 'Profile Selection'!J14="YES"),"Torque","Auto") -> Torque
F9: =IF('Profile Selection'!$I$9="DCS880","FBA A profile"," ") ->  | G9: =IF('Profile Selection'!$I$9="DCS880","50.29"," ") ->  | H9: =IF('Profile Selection'!$I$9="DCS880","DCP"," ") -> 
A10: Parameters for Configuring User Defined Data Words | F10: FBA A Type | G10: 51.01 | H10: Ethernet
A11: Inputs (Read) to PLC from VFD | C11: Outputs (Write) from PLC to VFD | F11: Protocol / Profile | G11: 51.02 | H11: 100 (EIP AC/DC)
A12: Parameter | B12: Parameter Setting | C12: Parameter | D12: Parameter Setting | F12: IP configuration | G12: 51.04 | H12: 0 (Static)
A13: 52.01 (16bit) | B13: =IF($I$62="NA","NA", IF($J$62>169,'Profile Selection'!X190, "NA")) -> NA | C13: 53.01 (16bit) | D13: =IF($I$62="NA","NA", IF($I$62>119,'Profile Selection'!AD190, "NA")) -> NA | F13: IP Address 1 | G13: 51.05 | H13: ='Profile Selection'!F41 -> 192
A14: 52.02 (16bit) | B14: =IF($I$62="NA","NA", IF($J$62>169,'Profile Selection'!X191, "NA")) -> NA | C14: 53.02 (16bit) | D14: =IF($I$62="NA","NA", IF($I$62>119,'Profile Selection'!AD191, "NA")) -> NA | F14: IP Address 2 | G14: 51.06 | H14: ='Profile Selection'!G41 -> 168
A15: 52.03 (16bit) | B15: =IF($I$62="NA","NA", IF($J$62>169,'Profile Selection'!X192, "NA")) -> NA | C15: 53.03 (16bit) | D15: =IF($I$62="NA","NA", IF($I$62>119,'Profile Selection'!AD192, "NA")) -> NA | F15: IP Address 3 | G15: 51.07 | H15: ='Profile Selection'!H41 -> 3 | R15: =J62 -> NA | T15: =K62 -> NA
A16: 52.04 (16bit) | B16: =IF($I$62="NA","NA", IF($J$62>169,'Profile Selection'!X193, "NA")) -> NA | C16: 53.04 (16bit) | D16: =IF($I$62="NA","NA", IF($I$62>119,'Profile Selection'!AD193, "NA")) -> NA | F16: IP Address 4 | G16: 51.08 | H16: ='Profile Selection'!I41 -> 3 | R16: =I62 -> NA | T16: =K62 -> NA
A17: 52.05 (16bit) | B17: =IF($I$62="NA","NA", IF($J$62>169,'Profile Selection'!X194, "NA")) -> NA | C17: 53.05 (16bit) | D17: =IF($I$62="NA","NA", IF($I$62>119,'Profile Selection'!AD194, "NA")) -> NA | F17: Subnet CIDR | G17: 51.09 | H17: ='Profile Selection'!S70 -> 24 | R17: 1 | T17: 0
A18: 52.06 (16bit) | B18: =IF($I$62="NA","NA", IF($J$62>169,'Profile Selection'!X195, "NA")) -> NA | C18: 53.06 (16bit) | D18: =IF($I$62="NA","NA", IF($I$62>119,'Profile Selection'!AD195, "NA")) -> NA | F18: GW Address 1 | G18: 51.1 | H18: ='Profile Selection'!F42 -> 0 | L18: =H13 -> 192 | M18: =H14 -> 168 | N18: =H15 -> 3 | O18: =H16 -> 3
A19: 52.07 (16bit) | B19: =IF($I$62="NA","NA", IF($J$62>169,'Profile Selection'!X196, "NA")) -> NA | C19: 53.07 (16bit) | D19: =IF($I$62="NA","NA", IF($I$62>119,'Profile Selection'!AD196, "NA")) -> NA | F19: GW Address 2 | G19: 51.11 | H19: ='Profile Selection'!G42 -> 0
A20: 52.08 (16bit) | B20: =IF($I$62="NA","NA", IF($J$62>169,'Profile Selection'!X197, "NA")) -> NA | C20: 53.08 (16bit) | D20: =IF($I$62="NA","NA", IF($I$62>119,'Profile Selection'!AD197, "NA")) -> NA | F20: GW Address 3 | G20: 51.12 | H20: ='Profile Selection'!H42 -> 0
A21: 52.09 (16bit) | B21: =IF($I$62="NA","NA", IF($J$62>169,'Profile Selection'!X198, "NA")) -> NA | C21: 53.09 (16bit) | D21: =IF($I$62="NA","NA", IF($I$62>119,'Profile Selection'!AD198, "NA")) -> NA | F21: GW Address 4 | G21: 51.13 | H21: ='Profile Selection'!I42 -> 0
A22: 52.10 (16bit) | B22: =IF($I$62="NA","NA", IF($J$62>169,'Profile Selection'!X199, "NA")) -> NA | C22: 53.10 (16bit) | D22: =IF($I$62="NA","NA", IF($I$62>119,'Profile Selection'!AD199, "NA")) -> NA | F22: Control Timeout | G22: 51.2 | H22: 20
F23: Idle Action | G23: 51.21 | H23: 0 (Off-line)
F24: ODVA Stop Function | G24: 51.22 | H24: Ramp
F25: ODVA Speed Scale | G25: 51.23 | H25: 128 | J25: ODVA Basic Control Word Bit Structure
F26: ODVA Torque Scale | G26: 51.24 | H26: 128
F27: FBA Par Refresh | G27: 51.27 | H27: ='Profile Selection'!$D$85 -> Configure
F28: =IF('Profile Selection'!$I$9="DCS880","Main CW source"," ") ->  | G28: =IF('Profile Selection'!$I$9="DCS880","6.08"," ") ->  | H28: =IF('Profile Selection'!$I$9="DCS880","FBA A"," ") -> 
F30: Other VFD Parameters that Accompany Communication Control | J30: ODVA Basic Status Word Bit Structure
F31: Parameter Name | G31: Parameter | H31: Parameter Setting | I31: Units
F32: =IF('Profile Selection'!$P$9="Scalar (V/Hz)","Freq Accel Time 1","Acceleration Time 1") -> Acceleration Time 1 | G32: =IF('Profile Selection'!$P$9="Scalar (V/Hz)",28.72,23.12) -> 23.12 | H32: 5 | I32: s
F33: =IF('Profile Selection'!$P$9="Scalar (V/Hz)","Freq Decel Time 1","Deceleration Time 1") -> Deceleration Time 1 | G33: =IF('Profile Selection'!$P$9="Scalar (V/Hz)",28.73,23.13) -> 23.13 | H33: 5 | I33: s
F34: =IF('Profile Selection'!$P$9="Scalar (V/Hz)","Minimum Frequency","Minimum Speed") -> Minimum Speed | G34: =IF('Profile Selection'!$P$9="Scalar (V/Hz)",30.13,30.11) -> 30.11 | H34: 0 | I34: =IF('Profile Selection'!$P$9="Scalar (V/Hz)","Hz","rpm") -> rpm
F35: =IF('Profile Selection'!$P$9="Scalar (V/Hz)","Maximum Frequency","Maximum Speed") -> Maximum Speed | G35: =IF('Profile Selection'!$P$9="Scalar (V/Hz)",30.14,30.12) -> 30.12 | H35: =+MaxFreqORRPMDef -> 1800 | I35: =IF('Profile Selection'!$P$9="Scalar (V/Hz)","Hz","rpm") -> rpm
F36: =IF('Profile Selection'!$P$9="Scalar (V/Hz)","Frequency Scaling","Speed Scaling") -> Speed Scaling | G36: =IF('Profile Selection'!$P$9="Scalar (V/Hz)",46.02,46.01) -> 46.01 | H36: =+MaxFreqORRPMDef -> 1800 | I36: =IF('Profile Selection'!$P$9="Scalar (V/Hz)","Hz","rpm") -> rpm
I61: Output | J61: Input | K61: Size
I62: =IF('Profile Selection'!L49="ODVA ACDC Basic Profile",IF('Profile Selection'!J14="NO",IF(OR('Profile Selection'!#REF!>2, 'Profile Selection'!#REF!>2),120,20),IF(OR('Profile Selection'!#REF!>3, 'Profile Selection'!#REF!>3),122,22)),"NA") -> NA | J62: =VLOOKUP(I62,I69:K73,2) -> NA | K62: =VLOOKUP(I62,I69:K73,3) -> NA
F63: ='Profile Selection'!I9 -> ACH580
C66: =IF('Profile Selection'!$I$9="DCS880",3,2) -> 2
I67: Assembly Instances for ODVA ACDC Basic Profile
C68: AC settings | D68: DCS880 settings | I68: Output | J68: Input | K68: Size
B69: NO | C69: "User Defines Setting" | D69: Local I/O | I69: NA | J69: NA | K69: NA
B70: YES | C70: Fieldbus A | D70: Main control word | I70: 20 | J70: 70 | K70: 2
B71: NO | C71: "User Defines Setting" | D71: "User Defines Setting" | I71: 22 | J71: 72 | K71: 3
B72: YES | C72: "No Setting Required" | D72: "No Setting Required" | I72: 120 | J72: 170 | K72: 12
B73: NO | C73: "User Defines Setting" | D73: "User Defines Setting" | I73: 122 | J73: 172 | K73: 13
B74: YES | C74: FB A ref1 | D74: FBA A ref1
B75: NO | C75: "User Defines Setting" | D75: "User Defines Setting"
B76: YES | C76: FB A ref2 | D76: FBA A ref2

Sheet ODVA ACDC Extended Profile (hidden)
A1: EIP ODVA AC/DC Drive Extended Profile | F1: FENA-11/21 Configuration Parameters (Group 50 & 51)
F2: Parameter Name | G2: Parameter | H2: Parameter Setting | J2: Rockwell Logix 5000 Software Configuration to add ABB VFDs as a new Ethernet IP Device
A3: VFD Signals Controlled by PLC over EIP | F3: FBA A enable | G3: 50.01 | H3: Please Select.. | J3: Note: The configuration below is specific to the ODVA AC/DC Extended Profile and the data
A4: Signal | B4: No/Yes | C4: Parameter | D4: Parameter Setting | F4: FBA A comm loss func | G4: 50.02 | H4: Fault | J4: supplied on the "Profile Selection" Tab of this Spreadsheet Tool. This PLC configuration
A5: Run Command | B5: YES | C5: 20.01 | D5: =VLOOKUP($B$5,$B$69:$D$70,$C$66) -> Fieldbus A | F5: FBA ref1 type | G5: 50.04 | H5: Auto | J5: matches the parameters defined on this page and will deliver successful Communications
A6: Fault Reset | B6: YES | C6: =IF('Profile Selection'!I9="DCS880",20.13,31.11) -> 31.11 | D6: =VLOOKUP($B$6,$B$71:$D$72,$C$66) -> "No Setting Required" | F6: FBA ref2 type | G6: 50.05 | H6: Auto | J6: between the PLC and the ABB VFD via Ethernet IP
A7: =IF('Profile Selection'!$P$9="Scalar (V/Hz)","Frequency Reference","Speed Reference") -> Speed Reference | B7: YES | C7: =IF('Profile Selection'!$P$9="Scalar (V/Hz)",28.11,22.11) -> 22.11 | D7: =VLOOKUP($B$7,$B$73:$D$74,$C$66) -> FB A ref1 | F7: FBA actual 1 type | G7: 50.07 | H7: =IF($B$7="YES", "Auto", "Speed") -> Auto
A8: Direction Command | B8: YES | C8: ='Profile Selection'!G85 -> 20.21 | D8: =VLOOKUP($B$8,$B$78:$C$79,2) -> Request | F8: FBA actual 2 type | G8: 50.08 | H8: =IF(AND($B$9="NO", 'Profile Selection'!J14="YES"),"Torque","Auto") -> Torque
A9: Torque Reference | B9: NO | C9: 26.11 | D9: =VLOOKUP($B$9,$B$75:$D$76,$C$66) -> "User Defines Setting" | F9: =IF('Profile Selection'!$I$9="DCS880","FBA A profile"," ") ->  | G9: =IF('Profile Selection'!$I$9="DCS880","50.29"," ") ->  | H9: =IF('Profile Selection'!$I$9="DCS880","DCP"," ") -> 
F10: FBA A Type | G10: 51.01 | H10: Ethernet
A11: Parameters for Configuring User Defined Data Words | F11: Protocol / Profile | G11: 51.02 | H11: 100 (EIP AC/DC)
A12: Inputs (Read) to PLC from VFD | C12: Outputs (Write) from PLC to VFD | F12: IP configuration | G12: 51.04 | H12: 0 (Static)
A13: Parameter | B13: Parameter Setting | C13: Parameter | D13: Parameter Setting | F13: IP Address 1 | G13: 51.05 | H13: ='Profile Selection'!F41 -> 192
A14: 52.01 (16bit) | B14: =IF($I$61="NA","NA", IF($J$61>169,'Profile Selection'!X190, "NA")) -> NA | C14: 53.01 (16bit) | D14: =IF($I$61="NA","NA", IF($I$61>119,'Profile Selection'!AD190, "NA")) -> NA | F14: IP Address 2 | G14: 51.06 | H14: ='Profile Selection'!G41 -> 168
A15: 52.02 (16bit) | B15: =IF($I$61="NA","NA", IF($J$61>169,'Profile Selection'!X191, "NA")) -> NA | C15: 53.02 (16bit) | D15: =IF($I$61="NA","NA", IF($I$61>119,'Profile Selection'!AD191, "NA")) -> NA | F15: IP Address 3 | G15: 51.07 | H15: ='Profile Selection'!H41 -> 3 | R15: =J61 -> NA | T15: =K61 -> NA
A16: 52.03 (16bit) | B16: =IF($I$61="NA","NA", IF($J$61>169,'Profile Selection'!X192, "NA")) -> NA | C16: 53.03 (16bit) | D16: =IF($I$61="NA","NA", IF($I$61>119,'Profile Selection'!AD192, "NA")) -> NA | F16: IP Address 4 | G16: 51.08 | H16: ='Profile Selection'!I41 -> 3 | R16: =I61 -> NA | T16: =K61 -> NA
A17: 52.04 (16bit) | B17: =IF($I$61="NA","NA", IF($J$61>169,'Profile Selection'!X193, "NA")) -> NA | C17: 53.04 (16bit) | D17: =IF($I$61="NA","NA", IF($I$61>119,'Profile Selection'!AD193, "NA")) -> NA | F17: Subnet CIDR | G17: 51.09 | H17: ='Profile Selection'!S70 -> 24 | R17: 1 | T17: 0
A18: 52.05 (16bit) | B18: =IF($I$61="NA","NA", IF($J$61>169,'Profile Selection'!X194, "NA")) -> NA | C18: 53.05 (16bit) | D18: =IF($I$61="NA","NA", IF($I$61>119,'Profile Selection'!AD194, "NA")) -> NA | F18: GW Address 1 | G18: 51.1 | H18: ='Profile Selection'!F42 -> 0 | L18: =H13 -> 192 | M18: =H14 -> 168 | N18: =H15 -> 3 | O18: =H16 -> 3
A19: 52.06 (16bit) | B19: =IF($I$61="NA","NA", IF($J$61>169,'Profile Selection'!X195, "NA")) -> NA | C19: 53.06 (16bit) | D19: =IF($I$61="NA","NA", IF($I$61>119,'Profile Selection'!AD195, "NA")) -> NA | F19: GW Address 2 | G19: 51.11 | H19: ='Profile Selection'!G42 -> 0
A20: 52.07 (16bit) | B20: =IF($I$61="NA","NA", IF($J$61>169,'Profile Selection'!X196, "NA")) -> NA | C20: 53.07 (16bit) | D20: =IF($I$61="NA","NA", IF($I$61>119,'Profile Selection'!AD196, "NA")) -> NA | F20: GW Address 3 | G20: 51.12 | H20: ='Profile Selection'!H42 -> 0
A21: 52.08 (16bit) | B21: =IF($I$61="NA","NA", IF($J$61>169,'Profile Selection'!X197, "NA")) -> NA | C21: 53.08 (16bit) | D21: =IF($I$61="NA","NA", IF($I$61>119,'Profile Selection'!AD197, "NA")) -> NA | F21: GW Address 4 | G21: 51.13 | H21: ='Profile Selection'!I42 -> 0
A22: 52.09 (16bit) | B22: =IF($I$61="NA","NA", IF($J$61>169,'Profile Selection'!X198, "NA")) -> NA | C22: 53.09 (16bit) | D22: =IF($I$61="NA","NA", IF($I$61>119,'Profile Selection'!AD198, "NA")) -> NA | F22: Control Timeout | G22: 51.2 | H22: 20
A23: 52.10 (16bit) | B23: =IF($I$61="NA","NA", IF($J$61>169,'Profile Selection'!X199, "NA")) -> NA | C23: 53.10 (16bit) | D23: =IF($I$61="NA","NA", IF($I$61>119,'Profile Selection'!AD199, "NA")) -> NA | F23: Idle Action | G23: 51.21 | H23: 0 (Off-line)
F24: ODVA Stop Function | G24: 51.22 | H24: Ramp
F25: ODVA Speed Scale | G25: 51.23 | H25: 128 | J25: ODVA Extended Control Word Bit Structure
F26: ODVA Torque Scale | G26: 51.24 | H26: 128
F27: FBA Par Refresh | G27: 51.27 | H27: ='Profile Selection'!$D$85 -> Configure
F28: =IF('Profile Selection'!$I$9="DCS880","Main CW source"," ") ->  | G28: =IF('Profile Selection'!$I$9="DCS880","6.08"," ") ->  | H28: =IF('Profile Selection'!$I$9="DCS880","FBA A"," ") -> 
F30: Other VFD Parameters that Accompany Communication Control | J30: ODVA Extended Status Word Bit Structure
F31: Parameter Name | G31: Parameter | H31: Parameter Setting | I31: Units
F32: =IF('Profile Selection'!$P$9="Scalar (V/Hz)","Freq Accel Time 1","Acceleration Time 1") -> Acceleration Time 1 | G32: =IF('Profile Selection'!$P$9="Scalar (V/Hz)",28.72,23.12) -> 23.12 | H32: 5.00 s | I32: s
F33: =IF('Profile Selection'!$P$9="Scalar (V/Hz)","Freq Decel Time 1","Deceleration Time 1") -> Deceleration Time 1 | G33: =IF('Profile Selection'!$P$9="Scalar (V/Hz)",28.73,23.13) -> 23.13 | H33: 5.00 s | I33: s
F34: =IF('Profile Selection'!$P$9="Scalar (V/Hz)","Minimum Frequency","Minimum Speed") -> Minimum Speed | G34: =IF('Profile Selection'!$P$9="Scalar (V/Hz)",30.13,30.11) -> 30.11 | H34: 0 | I34: =IF('Profile Selection'!$P$9="Scalar (V/Hz)","Hz","rpm") -> rpm
F35: =IF('Profile Selection'!$P$9="Scalar (V/Hz)","Maximum Frequency","Maximum Speed") -> Maximum Speed | G35: =IF('Profile Selection'!$P$9="Scalar (V/Hz)",30.14,30.12) -> 30.12 | H35: =+MaxFreqORRPMDef -> 1800 | I35: =IF('Profile Selection'!$P$9="Scalar (V/Hz)","Hz","rpm") -> rpm
F36: =IF('Profile Selection'!$P$9="Scalar (V/Hz)","Frequency Scaling","Speed Scaling") -> Speed Scaling | G36: =IF('Profile Selection'!$P$9="Scalar (V/Hz)",46.02,46.01) -> 46.01 | H36: =+MaxFreqORRPMDef -> 1800 | I36: =IF('Profile Selection'!$P$9="Scalar (V/Hz)","Hz","rpm") -> rpm
I60: Output | J60: Input | K60: Size
I61: =IF('Profile Selection'!L49="ODVA ACDC Extended Profile",IF('Profile Selection'!J14="NO",IF(OR('Profile Selection'!#REF!>2, 'Profile Selection'!#REF!>2),121,21),IF(OR('Profile Selection'!#REF!>3, 'Profile Selection'!#REF!>3),123,23)),"NA") -> NA | J61: =VLOOKUP(I61,I68:K72,2) -> NA | K61: =VLOOKUP(I61,I68:K72,3) -> NA
C66: =IF('Profile Selection'!$I$9="DCS880",3,2) -> 2 | I66: Assembly Instances for ODVA ACDC Basic Profile
I67: Output | J67: Input | K67: Size
C68: AC Settings | D68: DCS880 settings | I68: NA | J68: NA | K68: NA
A69: Run Cmd Selection | B69: NO | C69: "User Defines Setting" | D69: Local I/O | I69: 21 | J69: 71 | K69: 2
B70: YES | C70: Fieldbus A | D70: Main control word | I70: 23 | J70: 73 | K70: 3
A71: Fault Reset Selection | B71: NO | C71: "User Defines Setting" | D71: "User Defines Setting" | I71: 121 | J71: 171 | K71: 12
B72: YES | C72: "No Setting Required" | D72: "No Setting Required" | I72: 123 | J72: 173 | K72: 13
A73: Speed/Freq Ref Selection | B73: NO | C73: "User Defines Setting" | D73: "User Defines Setting"
B74: YES | C74: FB A ref1 | D74: FBA A ref1
A75: Torque Selection | B75: NO | C75: "User Defines Setting" | D75: "User Defines Setting"
B76: YES | C76: FB A ref2 | D76: FBA A ref2
A78: Direction Selection | B78: NO | C78: "User Defines Setting"
B79: YES | C79: ='Profile Selection'!F85 -> Request

Sheet ABB Drives Setup
A1: Ethernet IP ABB Drives Profile | F1: FENA-11/21 Configuration Parameters (Group 50 & 51)
F2: Parameter Name | G2: Parameter | H2: Parameter Setting | J2: Rockwell Logix 5000 Software Configuration to add ABB VFDs as a new Ethernet IP Device | Y2: After the import of the Drive Emulation AOI be sure to label the proper data links on the new tags with the proper names associated with the data used.
A3: VFD Signals Controlled by PLC over EIP | F3: FBA A enable | G3: 50.01 | H3: Enable | J3: Note: The configuration below is specific to the ABB Drives Profile and the data | Y3: The Control word and speed reference as well as status word and speed feedback is already premapped. Any other data mapped will need to be labeled in the description field
A4: Signal | B4: No/Yes | C4: Parameter | D4: Parameter Setting | F4: FBA A comm loss func | G4: 50.02 | H4: Fault | J4: supplied on the "Profile Selection" Tab of this Spreadsheet Tool. This PLC configuration | Y4: Copy and paste the description name from below into the description field of the tags generated from creating the AOI rung tags for the input and output data
A5: EXT1/EXT2 Select | B5: NO | C5: ='ABB Drives Setup'!F83 -> 19.11 | D5: =VLOOKUP(B5,'ABB Drives Setup'!B66:C67,2,FALSE) -> EXT1 | F5: FBA ref1 type | G5: 50.04 | H5: Auto | J5: matches the parameters defined on this page and will deliver successful Communications
A6: EXT1 Run Command | B6: YES | C6: ='ABB Drives Setup'!B83 -> 20.01 | D6: =VLOOKUP(B6,'ABB Drives Setup'!B58:D59,'ABB Drives Setup'!C56) -> Fieldbus A | F6: FBA ref2 type | G6: 50.05 | H6: Auto | J6: between the PLC and the ABB VFD via Ethernet IP
A7: EXT2 Run Command | B7: NO | C7: ='ABB Drives Setup'!J83 -> 20.06 | D7: =VLOOKUP(B7,'ABB Drives Setup'!B58:D59,'ABB Drives Setup'!C56) -> "User Defines Setting" | F7: FBA actual 1 type | G7: 50.07 | H7: =IF($B$9="YES", "Auto", "Speed") -> Auto
A8: Direction Command | B8: YES | C8: ='Profile Selection'!G85 -> 20.21 | D8: =VLOOKUP(B8,'ABB Drives Setup'!B64:C65,2) -> Request | F8: FBA actual 2 type | G8: 50.08 | H8: =IF(AND($B$12="NO", 'Profile Selection'!J14="YES"),"Torque","Auto") -> Torque
A9: =IF('Profile Selection'!$P$9="Scalar (V/Hz)","Frequency Reference 1","Speed Reference 1") -> Speed Reference 1 | B9: YES | C9: ='ABB Drives Setup'!D83 -> 22.11 | D9: =VLOOKUP(B9,'ABB Drives Setup'!B62:D63,'ABB Drives Setup'!C56) -> FB A ref1 | F9: =IF('Profile Selection'!$I$9="DCS880","FBA A profile"," ") ->  | G9: =IF('Profile Selection'!$I$9="DCS880","50.29"," ") ->  | H9: =IF('Profile Selection'!$I$9="DCS880","DCP"," ") -> 
A10: =IF('Profile Selection'!$P$9="Scalar (V/Hz)","Frequency Reference 2","Speed Reference 2") -> Speed Reference 2 | B10: NO | C10: ='ABB Drives Setup'!G83 -> 22.18 | D10: =VLOOKUP(B10,'ABB Drives Setup'!B68:D69,'ABB Drives Setup'!C56) -> "User Defines Setting" | F10: FBA A Type | G10: 51.01 | H10: Ethernet
A11: =IF('Profile Selection'!$P$9="Scalar (V/Hz)","Freq Ref 1/2 Sel","Speed Ref 1/2 Sel") -> Speed Ref 1/2 Sel | B11: NO | C11: ='ABB Drives Setup'!H83 -> See 19.11 | D11: =VLOOKUP('Profile Selection'!I9,'ABB Drives Setup'!A86:D92,'ABB Drives Setup'!C93,FALSE) -> "See Ext1/Ext2 Sel" | F11: Protocol / Profile | G11: 51.02 | H11: 101 (EIP ABB Pro)
A12: Torque Reference 1 | B12: NO | C12: ='ABB Drives Setup'!I83 -> 26.11 | D12: =VLOOKUP(B12,'ABB Drives Setup'!B70:D71,'ABB Drives Setup'!C56) -> "User Defines Setting" | F12: IP configuration | G12: 51.04 | H12: 0 (Static)
A13: Fault Reset | B13: YES | C13: ='ABB Drives Setup'!C83 -> 31.11 | D13: =VLOOKUP(B13,'ABB Drives Setup'!B60:D61,'ABB Drives Setup'!C56) -> FBA A MCW bit 7 | F13: IP Address 1 | G13: 51.05 | H13: ='Profile Selection'!F41 -> 192
F14: IP Address 2 | G14: 51.06 | H14: ='Profile Selection'!G41 -> 168
F15: IP Address 3 | G15: 51.07 | H15: ='Profile Selection'!H41 -> 3 | R15: 152 | T15: 13
A16: Parameters for Configuring User Defined Data Words | F16: IP Address 4 | G16: 51.08 | H16: ='Profile Selection'!I41 -> 3 | R16: 102 | T16: 13
A17: Inputs (Read) to PLC from VFD | C17: Outputs (Write) from PLC to VFD | F17: Subnet CIDR | G17: 51.09 | H17: ='Profile Selection'!S70 -> 24 | R17: 1 | T17: 0
A18: Parameter | B18: Parameter Setting | C18: Parameter | D18: Parameter Setting | F18: GW Address 1 | G18: 51.1 | H18: ='Profile Selection'!F42 -> 0 | L18: =H13 -> 192 | M18: =H14 -> 168 | N18: =H15 -> 3 | O18: =H16 -> 3
A19: 52.01 (16bit) | B19: =IF($I$51="NA","NA", IF($J$51=1,'Profile Selection'!AE206, "NA")) -> 1.11 | C19: 53.01 (16bit) | D19: =IF($I$51="NA","NA", IF($I$51=1,'Profile Selection'!AH206, "NA")) ->  | F19: GW Address 2 | G19: 51.11 | H19: ='Profile Selection'!G42 -> 0
A20: 52.02 (16bit) | B20: =IF($I$51="NA","NA", IF($J$51=1,'Profile Selection'!AE207, "NA")) -> 1.07 | C20: 53.02 (16bit) | D20: =IF($I$51="NA","NA", IF($I$51=1,'Profile Selection'!AH207, "NA")) ->  | F20: GW Address 3 | G20: 51.12 | H20: ='Profile Selection'!H42 -> 0
A21: 52.03 (16bit) | B21: =IF($I$51="NA","NA", IF($J$51=1,'Profile Selection'!AE208, "NA")) ->  | C21: 53.03 (16bit) | D21: =IF($I$51="NA","NA", IF($I$51=1,'Profile Selection'!AH208, "NA")) ->  | F21: GW Address 4 | G21: 51.13 | H21: ='Profile Selection'!I42 -> 0
A22: 52.04 (16bit) | B22: =IF($I$51="NA","NA", IF($J$51=1,'Profile Selection'!AE209, "NA")) ->  | C22: 53.04 (16bit) | D22: =IF($I$51="NA","NA", IF($I$51=1,'Profile Selection'!AH209, "NA")) ->  | F22: Control Timeout | G22: 51.2 | H22: 20
A23: 52.05 (16bit) | B23: =IF($I$51="NA","NA", IF($J$51=1,'Profile Selection'!AE210, "NA")) ->  | C23: 53.05 (16bit) | D23: =IF($I$51="NA","NA", IF($I$51=1,'Profile Selection'!AH210, "NA")) ->  | F23: Idle Action | G23: 51.21 | H23: 0 (Off-line)
A24: 52.06 (16bit) | B24: =IF($I$51="NA","NA", IF($J$51=1,'Profile Selection'!AE211, "NA")) ->  | C24: 53.06 (16bit) | D24: =IF($I$51="NA","NA", IF($I$51=1,'Profile Selection'!AH211, "NA")) ->  | F24: FBA Par Refresh | G24: 51.27 | H24: ='Profile Selection'!$D$85 -> Configure
A25: 52.07 (16bit) | B25: =IF($I$51="NA","NA", IF($J$51=1,'Profile Selection'!AE212, "NA")) ->  | C25: 53.07 (16bit) | D25: =IF($I$51="NA","NA", IF($I$51=1,'Profile Selection'!AH212, "NA")) ->  | F25: =IF('Profile Selection'!$I$9="DCS880","Main CW source"," ") ->  | G25: =IF('Profile Selection'!$I$9="DCS880","6.08"," ") ->  | H25: =IF('Profile Selection'!$I$9="DCS880","FBA A"," ") -> 
A26: 52.08 (16bit) | B26: =IF($I$51="NA","NA", IF($J$51=1,'Profile Selection'!AE213, "NA")) ->  | C26: 53.08 (16bit) | D26: =IF($I$51="NA","NA", IF($I$51=1,'Profile Selection'!AH213, "NA")) ->  | AJ26: =U50 -> DC Bus Volts
A27: 52.09 (16bit) | B27: =IF($I$51="NA","NA", IF($J$51=1,'Profile Selection'!AE214, "NA")) ->  | C27: 53.09 (16bit) | D27: =IF($I$51="NA","NA", IF($I$51=1,'Profile Selection'!AH214, "NA")) ->  | F27: Other VFD Parameters that Accompany Communication Control | AJ27: Output Current | AY27: =X50 -> 
A28: 52.10 (16bit) | B28: =IF($I$51="NA","NA", IF($J$51=1,'Profile Selection'!AE215, "NA")) ->  | C28: 53.10 (16bit) | D28: =IF($I$51="NA","NA", IF($I$51>=1,'Profile Selection'!AH215, "NA")) ->  | F28: Parameter Name | G28: Parameter | H28: Parameter Setting | I28: Units
F29: =IF('Profile Selection'!$P$9="Scalar (V/Hz)","Freq Accel Time 1","Acceleration Time 1") -> Acceleration Time 1 | G29: =IF('Profile Selection'!$P$9="Scalar (V/Hz)",28.72,23.12) -> 23.12 | H29: 5.00 s | I29: s
F30: =IF('Profile Selection'!$P$9="Scalar (V/Hz)","Freq Decel Time 1","Deceleration Time 1") -> Deceleration Time 1 | G30: =IF('Profile Selection'!$P$9="Scalar (V/Hz)",28.73,23.13) -> 23.13 | H30: 5.00 s | I30: s
F31: =IF('Profile Selection'!$P$9="Scalar (V/Hz)","Minimum Frequency","Minimum Speed") -> Minimum Speed | G31: =IF('Profile Selection'!$P$9="Scalar (V/Hz)",30.13,30.11) -> 30.11 | H31: 0 | I31: =IF('Profile Selection'!$P$9="Scalar (V/Hz)","Hz","rpm") -> rpm
F32: =IF('Profile Selection'!$P$9="Scalar (V/Hz)","Maximum Frequency","Maximum Speed") -> Maximum Speed | G32: =IF('Profile Selection'!$P$9="Scalar (V/Hz)",30.14,30.12) -> 30.12 | H32: =+MaxFreqORRPMDef -> 1800 | I32: =IF('Profile Selection'!$P$9="Scalar (V/Hz)","Hz","rpm") -> rpm
F33: =IF('Profile Selection'!$P$9="Scalar (V/Hz)","Frequency Scaling","Speed Scaling") -> Speed Scaling | G33: =IF('Profile Selection'!$P$9="Scalar (V/Hz)",46.02,46.01) -> 46.01 | H33: =+MaxFreqORRPMDef -> 1800 | I33: =IF('Profile Selection'!$P$9="Scalar (V/Hz)","Hz","rpm") -> rpm
F34: Power Scaling | G34: 46.04 | H34: 1000 | I34: N/A
F35: Current Scaling | G35: 46.05 | H35: 1000 | I35: A
I50: Output | J50: Input | K50: Size | U50: =IF('Profile Selection'!D21="","", 'Profile Selection'!D21) -> DC Bus Volts | X50: =IF('Profile Selection'!J21="","", 'Profile Selection'!J21) -> 
I51: 1 | J51: 1 | K51: =VLOOKUP(I51,I58:K62,3) -> 2 | U51: =IF('Profile Selection'!D22="","", 'Profile Selection'!D22) -> Output Current | X51: =IF('Profile Selection'!J22="","", 'Profile Selection'!J22) -> 
U52: =IF('Profile Selection'!D23="","", 'Profile Selection'!D23) ->  | X52: =IF('Profile Selection'!J23="","", 'Profile Selection'!J23) -> 
U53: =IF('Profile Selection'!D24="","", 'Profile Selection'!D24) ->  | X53: =IF('Profile Selection'!J24="","", 'Profile Selection'!J24) -> 
U54: =IF('Profile Selection'!D25="","", 'Profile Selection'!D25) ->  | X54: =IF('Profile Selection'!J25="","", 'Profile Selection'!J25) -> 
U55: =IF('Profile Selection'!D26="","", 'Profile Selection'!D26) ->  | X55: =IF('Profile Selection'!J26="","", 'Profile Selection'!J26) -> 
C56: =IF('Profile Selection'!$I$9="DCS880",3,2) -> 2 | I56: Assembly Instances for ODVA ACDC Basic Profile | U56: =IF('Profile Selection'!D27="","", 'Profile Selection'!D27) ->  | X56: =IF('Profile Selection'!J27="","", 'Profile Selection'!J27) -> 
C57: AC Settings | D57: DCS880 Settings | I57: Output | J57: Input | K57: Size | U57: =IF('Profile Selection'!D28="","", 'Profile Selection'!D28) ->  | X57: =IF('Profile Selection'!J28="","", 'Profile Selection'!J28) -> 
A58: Run Cmd Selection | B58: NO | C58: "User Defines Setting" | D58: Local I/O | I58: NA | J58: NA | K58: NA | U58: =IF('Profile Selection'!D29="","", 'Profile Selection'!D29) ->  | X58: =IF('Profile Selection'!J29="","", 'Profile Selection'!J29) -> 
B59: YES | C59: Fieldbus A | D59: Main control word | I59: 1 | J59: 51 | K59: 2 | U59: =IF('Profile Selection'!D30="","", 'Profile Selection'!D30) ->  | X59: =IF('Profile Selection'!J30="","", 'Profile Selection'!J30) -> 
A60: Fault Reset Selection | B60: NO | C60: "User Defines Setting" | D60: "User Defines Setting" | I60: 2 | J60: 52 | K60: 3
B61: YES | C61: FBA A MCW bit 7 | D61: "No Setting Required" | I61: 101 | J61: 151 | K61: 12
A62: Spd/Freq Ref1 Selection | B62: NO | C62: "User Defines Setting" | D62: "User Defines Setting" | I62: 102 | J62: 152 | K62: 13
B63: YES | C63: FB A ref1 | D63: FBA A ref1
A64: Direction Selection | B64: NO | C64: "User Defines Setting"
B65: YES | C65: ='Profile Selection'!F85 -> Request
A66: EXT1/EXT2 Sel | B66: NO | C66: EXT1
B67: YES | C67: =VLOOKUP('Profile Selection'!$I$9,'ABB Drives Setup'!$A$86:$C$92,2,FALSE) -> FBA A MCW bit 11
A68: Spd/Freq Ref2 Selecton | B68: NO | C68: "User Defines Setting" | D68: "User Defines Setting"
B69: YES | C69: FB A ref2 | D69: FBA A ref2
A70: Torque Selection | B70: NO | C70: "User Defines Setting" | D70: "User Defines Setting"
B71: YES | C71: FB A ref2 | D71: FBA A ref2
A72: Spd/Freq Ref1/2 Sel | B72: NO
B73: YES
B75: Ext1 Run Cmd Param | C75: Flt Reset Param | D75: Spd/Freq Ref1 Sel | E75: NA | F75: EXT1/EXT2 Sel | G75: Spd/Freq Ref2 Sel | H75: Ref 1/2 Selection | I75: Torq Ref | J75: Ext2 Run Cmd
A76: ACS380 | B76: 20.01 | C76: 31.11 | D76: =IF('Profile Selection'!$P$9="Scalar (V/Hz)",28.11,22.11) -> 22.11 | E76: NA | F76: 19.11 | G76: =IF('Profile Selection'!$P$9="Scalar (V/Hz)",28.15,22.18) -> 22.18 | H76: See 19.11 | I76: 26.11 | J76: 20.06
A77: ACS480 | B77: 20.01 | C77: 31.11 | D77: =IF('Profile Selection'!$P$9="Scalar (V/Hz)",28.11,22.11) -> 22.11 | E77: NA | F77: 19.11 | G77: =IF('Profile Selection'!$P$9="Scalar (V/Hz)",28.15,22.18) -> 22.18 | H77: See 19.11 | I77: 26.11 | J77: 20.06
A78: ACS580 | B78: 20.01 | C78: 31.11 | D78: =IF('Profile Selection'!$P$9="Scalar (V/Hz)",28.11,22.11) -> 22.11 | E78: NA | F78: 19.11 | G78: =IF('Profile Selection'!$P$9="Scalar (V/Hz)",28.15,22.18) -> 22.18 | H78: See 19.11 | I78: 26.11 | J78: 20.06
A79: ACS880 | B79: 20.01 | C79: 31.11 | D79: =IF('Profile Selection'!$P$9="Scalar (V/Hz)",28.11,22.11) -> 22.11 | E79: NA | F79: 19.11 | G79: =IF('Profile Selection'!$P$9="Scalar (V/Hz)",28.12,22.12) -> 22.12 | H79: =IF('Profile Selection'!$P$9="Scalar (V/Hz)",28.14,22.14) -> 22.14 | I79: 26.11 | J79: 20.06
A80: DCS880 | B80: 20.01 | C80: 20.13 | D80: 22.11 | E80: NA | F80: 19.11 | G80: 22.12 | H80: 22.14 | I80: 26.11 | J80: 20.15
A81: ACH580 | B81: 20.01 | C81: 31.11 | D81: =IF('Profile Selection'!$P$9="Scalar (V/Hz)",28.11,22.11) -> 22.11 | E81: NA | F81: 19.11 | G81: =IF('Profile Selection'!$P$9="Scalar (V/Hz)",28.15,22.18) -> 22.18 | H81: See 19.11 | I81: 26.11 | J81: 20.06
A82: ACQ580 | B82: 20.01 | C82: 31.11 | D82: =IF('Profile Selection'!$P$9="Scalar (V/Hz)",28.11,22.11) -> 22.11 | E82: NA | F82: 19.11 | G82: =IF('Profile Selection'!$P$9="Scalar (V/Hz)",28.15,22.18) -> 22.18 | H82: See 19.11 | I82: 26.11 | J82: 20.06
B83: =VLOOKUP('Profile Selection'!$I$9,'ABB Drives Setup'!$A$76:$J$82,2,FALSE) -> 20.01 | C83: =VLOOKUP('Profile Selection'!$I$9,'ABB Drives Setup'!$A$76:$J$82,3,FALSE) -> 31.11 | D83: =VLOOKUP('Profile Selection'!$I$9,'ABB Drives Setup'!$A$76:$J$82,4,FALSE) -> 22.11 | E83: NA | F83: =VLOOKUP('Profile Selection'!$I$9,'ABB Drives Setup'!$A$76:$J$82,6,FALSE) -> 19.11 | G83: =VLOOKUP('Profile Selection'!$I$9,'ABB Drives Setup'!$A$76:$J$82,7,FALSE) -> 22.18 | H83: =VLOOKUP('Profile Selection'!$I$9,'ABB Drives Setup'!$A$76:$J$82,8,FALSE) -> See 19.11 | I83: =VLOOKUP('Profile Selection'!$I$9,'ABB Drives Setup'!$A$76:$J$82,9,FALSE) -> 26.11 | J83: =VLOOKUP('Profile Selection'!$I$9,'ABB Drives Setup'!$A$76:$J$82,10,FALSE) -> 20.06
B85: Ext1/2 Sel Setting | C85: Spd Ref1/2 Sel (yes) | D85: Spd Ref1/2 Sel (No) | F85: =OR('Profile Selection'!I9="ACS880",'Profile Selection'!I9="DCS880") -> FALSE
A86: ACS380 | B86: FBA A MCW bit 11 | C86: "See Ext1/Ext2 Sel" | D86: "See Ext1/Ext2 Sel"
A87: ACS480 | B87: FBA A MCW bit 11 | C87: "See Ext1/Ext2 Sel" | D87: "See Ext1/Ext2 Sel"
A88: ACS580 | B88: FBA A MCW bit 11 | C88: "See Ext1/Ext2 Sel" | D88: "See Ext1/Ext2 Sel"
A89: ACS880 | B89: FBA A MCW bit 11 | C89: Other (Define bit) | D89: Follow Ext1/Ext2 Sel
A90: DCS880 | B90: Other (6.01 bit11) | C90: Other (Define bit) | D90: Speed Reference 1
A91: ACH580 | B91: FBA A MCW bit 11 | C91: "See Ext1/Ext2 Sel" | D91: "See Ext1/Ext2 Sel"
A92: ACQ580 | B92: FBA A MCW bit 11 | C92: "See Ext1/Ext2 Sel" | D92: "See Ext1/Ext2 Sel"
C93: =IF(B11="NO",4,3) -> 4

Sheet Transparent 16 Profile (hidden)
A1: Ethernet IP Transparent 16 (Bit) Profile | F1: FENA-11/21 Configuration Parameters (Group 50 & 51)
F2: Parameter Name | G2: Parameter | H2: Parameter Setting | J2: Rockwell Logix 5000 Software Configuration to add ABB VFDs as a new Ethernet IP Device
A3: VFD Signals Controlled by PLC over EIP | F3: FBA A enable | G3: 50.01 | H3: Please Select.. | J3: Note: The configuration below is specific to the Transparent 16 Profile and the data
A4: Signal | B4: No/Yes | C4: Parameter | D4: Parameter Setting | F4: FBA A comm loss func | G4: 50.02 | H4: Fault Always | J4: supplied on the "Profile Selection" Tab of this Spreadsheet Tool. This PLC configuration
A5: EXT1/EXT2 Select | B5: NO | C5: ='ABB Drives Setup'!F83 -> 19.11 | D5: =VLOOKUP(B5,'ABB Drives Setup'!B66:C67,2,FALSE) -> EXT1 | F5: FBA ref1 type | G5: 50.04 | H5: Auto | J5: matches the parameters defined on this page and will deliver successful Communications
A6: EXT1 Run Command | B6: YES | C6: ='ABB Drives Setup'!B83 -> 20.01 | D6: =VLOOKUP(B6,'ABB Drives Setup'!B58:D59,'ABB Drives Setup'!C56) -> Fieldbus A | F6: FBA ref2 type | G6: 50.05 | H6: Auto | J6: between the PLC and the ABB VFD via Ethernet IP
A7: EXT2 Run Command | B7: NO | C7: ='ABB Drives Setup'!J83 -> 20.06 | D7: =VLOOKUP(B7,'ABB Drives Setup'!B58:D59,'ABB Drives Setup'!C56) -> "User Defines Setting" | F7: FBA actual 1 type | G7: 50.07 | H7: =IF($B$9="YES", "Auto", "Speed") -> Auto
A8: Direction Command | B8: YES | C8: ='Profile Selection'!G85 -> 20.21 | D8: =VLOOKUP(B8,'ABB Drives Setup'!B64:C65,2) -> Request | F8: FBA actual 2 type | G8: 50.08 | H8: =IF(AND($B$12="NO", 'Profile Selection'!J14="YES"),"Torque","Auto") -> Torque
A9: =IF('Profile Selection'!$P$9="Scalar (V/Hz)","Frequency Reference 1","Speed Reference 1") -> Speed Reference 1 | B9: YES | C9: ='ABB Drives Setup'!D83 -> 22.11 | D9: =VLOOKUP(B9,'ABB Drives Setup'!B62:D63,'ABB Drives Setup'!C56) -> FB A ref1 | F9: FBA A SW transparent source | G9: 50.09 | H9: User Status Word 1
A10: =IF('Profile Selection'!$P$9="Scalar (V/Hz)","Frequency Reference 2","Speed Reference 2") -> Speed Reference 2 | B10: NO | C10: ='ABB Drives Setup'!G83 -> 22.18 | D10: =VLOOKUP(B10,'ABB Drives Setup'!B68:D69,'ABB Drives Setup'!C56) -> "User Defines Setting" | F10: FBA A act1 transparent source | G10: 50.1 | H10: Not selected
A11: =IF('Profile Selection'!$P$9="Scalar (V/Hz)","Freq Ref 1/2 Sel","Speed Ref 1/2 Sel") -> Speed Ref 1/2 Sel | B11: NO | C11: ='ABB Drives Setup'!H83 -> See 19.11 | D11: =VLOOKUP('Profile Selection'!I9,'ABB Drives Setup'!A86:D92,C93,FALSE) -> "See Ext1/Ext2 Sel" | F11: FBA A act2 transparent source | G11: 50.11 | H11: Not selected
A12: Torque Reference 1 | B12: NO | C12: ='ABB Drives Setup'!I83 -> 26.11 | D12: =VLOOKUP(B12,'ABB Drives Setup'!B70:D71,'ABB Drives Setup'!C56) -> "User Defines Setting" | F12: =IF('Profile Selection'!$I$9="DCS880","FBA A profile"," ") ->  | G12: =IF('Profile Selection'!$I$9="DCS880","50.29"," ") ->  | H12: =IF('Profile Selection'!$I$9="DCS880","DCP"," ") -> 
A13: Fault Reset | B13: YES | C13: ='ABB Drives Setup'!C83 -> 31.11 | D13: =VLOOKUP(B13,'ABB Drives Setup'!B60:D61,'ABB Drives Setup'!C56) -> FBA A MCW bit 7 | F13: FBA A Type | G13: 51.01 | H13: Ethernet
F14: Protocol / Profile | G14: 51.02 | H14: 102 (EIP T16)
A15: Parameters for Configuring User Defined Status Word | F15: IP configuration | G15: 51.04 | H15: 0 (Static) | R15: =J60 -> NA | T15: =K60 -> NA
A16: Signal | C16: Parameter | D16: Parameter Setting | F16: IP Address 1 | G16: 51.05 | H16: ='Profile Selection'!F41 -> 192 | R16: =I60 -> NA | T16: =K60 -> NA
A17: User Status Word Bit 0 Sel | C17: 6.6 | D17: "User Selects Bit Source" | F17: IP Address 2 | G17: 51.06 | H17: ='Profile Selection'!G41 -> 168 | R17: 1 | T17: 0
A18: User Status Word Bit 1 Sel | C18: 6.61 | D18: "User Selects Bit Source" | F18: IP Address 3 | G18: 51.07 | H18: ='Profile Selection'!H41 -> 3 | L18: =H16 -> 192 | M18: =H17 -> 168 | N18: =H18 -> 3 | O18: =H19 -> 3
A19: User Status Word Bit 2 Sel | C19: 6.62 | D19: "User Selects Bit Source" | F19: IP Address 4 | G19: 51.08 | H19: ='Profile Selection'!I41 -> 3
A20: User Status Word Bit 3 Sel | C20: 6.63 | D20: "User Selects Bit Source" | F20: Subnet CIDR | G20: 51.09 | H20: ='Profile Selection'!S70 -> 24
A21: User Status Word Bit 4 Sel | C21: 6.64 | D21: "User Selects Bit Source" | F21: GW Address 1 | G21: 51.1 | H21: ='Profile Selection'!F42 -> 0
A22: User Status Word Bit 5 Sel | C22: 6.65 | D22: "User Selects Bit Source" | F22: GW Address 2 | G22: 51.11 | H22: ='Profile Selection'!G42 -> 0
A23: User Status Word Bit 6 Sel | C23: 6.66 | D23: "User Selects Bit Source" | F23: GW Address 3 | G23: 51.12 | H23: ='Profile Selection'!H42 -> 0
A24: User Status Word Bit 7 Sel | C24: 6.67 | D24: "User Selects Bit Source" | F24: GW Address 4 | G24: 51.13 | H24: ='Profile Selection'!I42 -> 0
A25: User Status Word Bit 8 Sel | C25: 6.68 | D25: "User Selects Bit Source" | F25: T16 Scale | G25: 51.19 | H25: 99
A26: User Status Word Bit 9 Sel | C26: 6.69 | D26: "User Selects Bit Source" | F26: Control Timeout | G26: 51.2 | H26: 20
A27: User Status Word Bit 10 Sel | C27: 6.7 | D27: "User Selects Bit Source" | F27: Idle Action | G27: 51.21 | H27: 0 (Off-line)
A28: User Status Word Bit 11 Sel | C28: 6.71 | D28: "User Selects Bit Source" | F28: FBA Par Refresh | G28: 51.27 | H28: ='Profile Selection'!$D$85 -> Configure
A29: User Status Word Bit 12 Sel | C29: 6.72 | D29: "User Selects Bit Source" | F29: =IF('Profile Selection'!$I$9="DCS880","Main CW source"," ") ->  | G29: =IF('Profile Selection'!$I$9="DCS880","6.08"," ") ->  | H29: =IF('Profile Selection'!$I$9="DCS880","FBA A"," ") -> 
A30: User Status Word Bit 13 Sel | C30: 6.73 | D30: "User Selects Bit Source"
A31: User Status Word Bit 14 Sel | C31: 6.74 | D31: "User Selects Bit Source" | F31: Other VFD Parameters that Accompany Communication Control
A32: User Status Word Bit 15 Sel | C32: 6.75 | D32: "User Selects Bit Source" | F32: Parameter Name | G32: Parameter | H32: Parameter Setting | I32: Units
F33: =IF('Profile Selection'!$P$9="Scalar (V/Hz)","Freq Accel Time 1","Acceleration Time 1") -> Acceleration Time 1 | G33: =IF('Profile Selection'!$P$9="Scalar (V/Hz)",28.72,23.12) -> 23.12 | H33: 5.00 s | I33: s
A34: Parameters for Configuring User Defined Data Words | F34: =IF('Profile Selection'!$P$9="Scalar (V/Hz)","Freq Decel Time 1","Deceleration Time 1") -> Deceleration Time 1 | G34: =IF('Profile Selection'!$P$9="Scalar (V/Hz)",28.73,23.13) -> 23.13 | H34: 5.00 s | I34: s
A35: Inputs (Read) to PLC from VFD | C35: Outputs (Write) from PLC to VFD | F35: =IF('Profile Selection'!$P$9="Scalar (V/Hz)","Minimum Frequency","Minimum Speed") -> Minimum Speed | G35: =IF('Profile Selection'!$P$9="Scalar (V/Hz)",30.13,30.11) -> 30.11 | H35: 0 | I35: =IF('Profile Selection'!$P$9="Scalar (V/Hz)","Hz","rpm") -> rpm
A36: Parameter | B36: Parameter Setting | C36: Parameter | D36: Parameter Setting | F36: =IF('Profile Selection'!$P$9="Scalar (V/Hz)","Maximum Frequency","Maximum Speed") -> Maximum Speed | G36: =IF('Profile Selection'!$P$9="Scalar (V/Hz)",30.14,30.12) -> 30.12 | H36: =+MaxFreqORRPMDef -> 1800 | I36: =IF('Profile Selection'!$P$9="Scalar (V/Hz)","Hz","rpm") -> rpm
A37: 52.01 (16bit) | B37: =IF($I$60="NA","NA", IF($J$60>150,'Profile Selection'!X190, "NA")) -> NA | C37: 53.01 (16bit) | D37: =IF($I$60="NA","NA", IF($I$60>100,'Profile Selection'!AD190, "NA")) -> NA | F37: =IF('Profile Selection'!$P$9="Scalar (V/Hz)","Frequency Scaling","Speed Scaling") -> Speed Scaling | G37: =IF('Profile Selection'!$P$9="Scalar (V/Hz)",46.02,46.01) -> 46.01 | H37: =+MaxFreqORRPMDef -> 1800 | I37: =IF('Profile Selection'!$P$9="Scalar (V/Hz)","Hz","rpm") -> rpm
A38: 52.02 (16bit) | B38: =IF($I$60="NA","NA", IF($J$60>150,'Profile Selection'!X191, "NA")) -> NA | C38: 53.02 (16bit) | D38: =IF($I$60="NA","NA", IF($I$60>100,'Profile Selection'!AD191, "NA")) -> NA
A39: 52.03 (16bit) | B39: =IF($I$60="NA","NA", IF($J$60>150,'Profile Selection'!X192, "NA")) -> NA | C39: 53.03 (16bit) | D39: =IF($I$60="NA","NA", IF($I$60>100,'Profile Selection'!AD192, "NA")) -> NA
A40: 52.04 (16bit) | B40: =IF($I$60="NA","NA", IF($J$60>150,'Profile Selection'!X193, "NA")) -> NA | C40: 53.04 (16bit) | D40: =IF($I$60="NA","NA", IF($I$60>100,'Profile Selection'!AD193, "NA")) -> NA
A41: 52.05 (16bit) | B41: =IF($I$60="NA","NA", IF($J$60>150,'Profile Selection'!X194, "NA")) -> NA | C41: 53.05 (16bit) | D41: =IF($I$60="NA","NA", IF($I$60>100,'Profile Selection'!AD194, "NA")) -> NA
A42: 52.06 (16bit) | B42: =IF($I$60="NA","NA", IF($J$60>150,'Profile Selection'!X195, "NA")) -> NA | C42: 53.06 (16bit) | D42: =IF($I$60="NA","NA", IF($I$60>100,'Profile Selection'!AD195, "NA")) -> NA
A43: 52.07 (16bit) | B43: =IF($I$60="NA","NA", IF($J$60>150,'Profile Selection'!X196, "NA")) -> NA | C43: 53.07 (16bit) | D43: =IF($I$60="NA","NA", IF($I$60>100,'Profile Selection'!AD196, "NA")) -> NA
A44: 52.08 (16bit) | B44: =IF($I$60="NA","NA", IF($J$60>150,'Profile Selection'!X197, "NA")) -> NA | C44: 53.08 (16bit) | D44: =IF($I$60="NA","NA", IF($I$60>100,'Profile Selection'!AD197, "NA")) -> NA
A45: 52.09 (16bit) | B45: =IF($I$60="NA","NA", IF($J$60>150,'Profile Selection'!X198, "NA")) -> NA | C45: 53.09 (16bit) | D45: =IF($I$60="NA","NA", IF($I$60>100,'Profile Selection'!AD198, "NA")) -> NA
A46: 52.10 (16bit) | B46: =IF($I$60="NA","NA", IF($J$60>150,'Profile Selection'!X199, "NA")) -> NA | C46: 53.10 (16bit) | D46: =IF($I$60="NA","NA", IF($I$60>100,'Profile Selection'!AD199, "NA")) -> NA
I59: Output | J59: Input | K59: Size
I60: =IF('Profile Selection'!L49="Transparent 16 Profile",IF('Profile Selection'!J14="NO",IF(OR('Profile Selection'!#REF!>2, 'Profile Selection'!#REF!>2),111,11),IF(OR('Profile Selection'!#REF!>3, 'Profile Selection'!#REF!>3),112,12)),"NA") -> NA | J60: =VLOOKUP(I60,I67:K71,2) -> NA | K60: =VLOOKUP(I60,I67:K71,3) -> NA
I65: Assembly Instances for ODVA ACDC Basic Profile
I66: Output | J66: Input | K66: Size
B67: NO | C67: "User Defines Setting" | I67: NA | J67: NA | K67: NA
B68: YES | C68: "Define Bit in User CW 6.03" | I68: 11 | J68: 61 | K68: 2
B69: NO | C69: "User Defines Setting" | I69: 12 | J69: 62 | K69: 3
B70: YES | C70: "Define Bit in User CW 6.03" | I70: 111 | J70: 161 | K70: 12
B71: NO | C71: "User Defines Setting" | I71: 112 | J71: 162 | K71: 13
B72: YES | C72: FB A ref1
B73: NO | C73: "User Defines Setting"
B74: YES | C74: "Define Bit in User CW 6.03"
B75: NO | C75: EXT1
B76: YES | C76: "Define Bit in User CW 6.03"
B77: NO | C77: "User Defines Setting"
B78: YES | C78: FB A ref2
B79: NO | C79: "User Defines Setting"
B80: YES | C80: FB A ref2
C93: =IF(B11="NO",4,3) -> 4

Sheet Transparent 32 Profile (hidden)
A1: Ethernet IP Transparent 32 (Bit) Profile | F1: FENA-11/21 Configuration Parameters (Group 50 & 51)
F2: Parameter Name | G2: Parameter | H2: Parameter Setting | J2: Rockwell Logix 5000 Software Configuration to add ABB VFDs as a new Ethernet IP Device
A3: VFD Signals Controlled by PLC over EIP | F3: FBA A enable | G3: 50.01 | H3: Please Select.. | J3: Note: The configuration below is specific to the Transparent 32 Profile and the data
A4: Signal | B4: No/Yes | C4: Parameter | D4: Parameter Setting | F4: FBA A comm loss func | G4: 50.02 | H4: Fault Always | J4: supplied on the "Profile Selection" Tab of this Spreadsheet Tool. This PLC configuration
A5: EXT1/EXT2 Select | B5: NO | C5: ='ABB Drives Setup'!F83 -> 19.11 | D5: =VLOOKUP(B5,'ABB Drives Setup'!B66:C67,2,FALSE) -> EXT1 | F5: FBA ref1 type | G5: 50.04 | H5: Auto | J5: matches the parameters defined on this page and will deliver successful Communications
A6: EXT1 Run Command | B6: YES | C6: ='ABB Drives Setup'!B83 -> 20.01 | D6: =VLOOKUP(B6,'ABB Drives Setup'!B58:D59,'ABB Drives Setup'!C56) -> Fieldbus A | F6: FBA ref2 type | G6: 50.05 | H6: Auto | J6: between the PLC and the ABB VFD via Ethernet IP
A7: EXT2 Run Command | B7: NO | C7: ='ABB Drives Setup'!J83 -> 20.06 | D7: =VLOOKUP(B7,'ABB Drives Setup'!B58:D59,'ABB Drives Setup'!C56) -> "User Defines Setting" | F7: FBA actual 1 type | G7: 50.07 | H7: =IF($B$9="YES", "Auto", "Speed") -> Auto
A8: Direction Command | B8: YES | C8: ='Profile Selection'!G85 -> 20.21 | D8: =VLOOKUP(B8,'ABB Drives Setup'!B64:C65,2) -> Request | F8: FBA actual 2 type | G8: 50.08 | H8: =IF(AND($B$12="NO", 'Profile Selection'!J14="YES"),"Torque","Auto") -> Torque
A9: =IF('Profile Selection'!$P$9="Scalar (V/Hz)","Frequency Reference 1","Speed Reference 1") -> Speed Reference 1 | B9: YES | C9: ='ABB Drives Setup'!D83 -> 22.11 | D9: =VLOOKUP(B9,'ABB Drives Setup'!B62:D63,'ABB Drives Setup'!C56) -> FB A ref1 | F9: FBA A SW transparent source | G9: 50.09 | H9: User Status Word 1
A10: =IF('Profile Selection'!$P$9="Scalar (V/Hz)","Frequency Reference 2","Speed Reference 2") -> Speed Reference 2 | B10: NO | C10: ='ABB Drives Setup'!G83 -> 22.18 | D10: =VLOOKUP(B10,'ABB Drives Setup'!B68:D69,'ABB Drives Setup'!C56) -> "User Defines Setting" | F10: FBA A act1 transparent source | G10: 50.1 | H10: Not selected
A11: =IF('Profile Selection'!$P$9="Scalar (V/Hz)","Freq Ref 1/2 Sel","Speed Ref 1/2 Sel") -> Speed Ref 1/2 Sel | B11: NO | C11: ='ABB Drives Setup'!H83 -> See 19.11 | D11: =VLOOKUP('Profile Selection'!I9,'ABB Drives Setup'!A86:D92,C93,FALSE) -> "See Ext1/Ext2 Sel" | F11: FBA A act2 transparent source | G11: 50.11 | H11: Not selected
A12: Torque Reference 1 | B12: NO | C12: ='ABB Drives Setup'!I83 -> 26.11 | D12: =VLOOKUP(B12,'ABB Drives Setup'!B70:D71,'ABB Drives Setup'!C56) -> "User Defines Setting" | F12: =IF('Profile Selection'!$I$9="DCS880","FBA A profile"," ") ->  | G12: =IF('Profile Selection'!$I$9="DCS880","50.29"," ") ->  | H12: =IF('Profile Selection'!$I$9="DCS880","DCP"," ") -> 
A13: Fault Reset | B13: YES | C13: ='ABB Drives Setup'!C83 -> 31.11 | D13: =VLOOKUP(B13,'ABB Drives Setup'!B60:D61,'ABB Drives Setup'!C56) -> FBA A MCW bit 7 | F13: FBA A Type | G13: 51.01 | H13: Ethernet
F14: Protocol / Profile | G14: 51.02 | H14: 103 (EIP T32)
A15: Parameters for Configuring User Defined Status Word | F15: IP configuration | G15: 51.04 | H15: 0 (Static) | R15: =J60 -> NA | T15: =L60 -> NA
A16: Signal | C16: Parameter | D16: Parameter Setting | F16: IP Address 1 | G16: 51.05 | H16: ='Profile Selection'!F41 -> 192 | R16: =I60 -> NA | T16: =L60 -> NA
A17: User Status Word Bit 0 Sel | C17: 6.6 | D17: "User Selects Bit Source" | F17: IP Address 2 | G17: 51.06 | H17: ='Profile Selection'!G41 -> 168 | R17: 1 | T17: 0
A18: User Status Word Bit 1 Sel | C18: 6.61 | D18: "User Selects Bit Source" | F18: IP Address 3 | G18: 51.07 | H18: ='Profile Selection'!H41 -> 3 | L18: =H16 -> 192 | M18: =H17 -> 168 | N18: =H18 -> 3 | O18: =H19 -> 3
A19: User Status Word Bit 2 Sel | C19: 6.62 | D19: "User Selects Bit Source" | F19: IP Address 4 | G19: 51.08 | H19: ='Profile Selection'!I41 -> 3
A20: User Status Word Bit 3 Sel | C20: 6.63 | D20: "User Selects Bit Source" | F20: Subnet CIDR | G20: 51.09 | H20: ='Profile Selection'!S70 -> 24
A21: User Status Word Bit 4 Sel | C21: 6.64 | D21: "User Selects Bit Source" | F21: GW Address 1 | G21: 51.1 | H21: ='Profile Selection'!F42 -> 0
A22: User Status Word Bit 5 Sel | C22: 6.65 | D22: "User Selects Bit Source" | F22: GW Address 2 | G22: 51.11 | H22: ='Profile Selection'!G42 -> 0
A23: User Status Word Bit 6 Sel | C23: 6.66 | D23: "User Selects Bit Source" | F23: GW Address 3 | G23: 51.12 | H23: ='Profile Selection'!H42 -> 0
A24: User Status Word Bit 7 Sel | C24: 6.67 | D24: "User Selects Bit Source" | F24: GW Address 4 | G24: 51.13 | H24: ='Profile Selection'!I42 -> 0
A25: User Status Word Bit 8 Sel | C25: 6.68 | D25: "User Selects Bit Source" | F25: T16 Scale | G25: 51.19 | H25: 99
A26: User Status Word Bit 9 Sel | C26: 6.69 | D26: "User Selects Bit Source" | F26: Control Timeout | G26: 51.2 | H26: 20
A27: User Status Word Bit 10 Sel | C27: 6.7 | D27: "User Selects Bit Source" | F27: Idle Action | G27: 51.21 | H27: 0 (Off-line)
A28: User Status Word Bit 11 Sel | C28: 6.71 | D28: "User Selects Bit Source" | F28: FBA Par Refresh | G28: 51.27 | H28: ='Profile Selection'!$D$85 -> Configure
A29: User Status Word Bit 12 Sel | C29: 6.72 | D29: "User Selects Bit Source" | F29: =IF('Profile Selection'!$I$9="DCS880","Main CW source"," ") ->  | G29: =IF('Profile Selection'!$I$9="DCS880","6.08"," ") ->  | H29: =IF('Profile Selection'!$I$9="DCS880","FBA A"," ") -> 
A30: User Status Word Bit 13 Sel | C30: 6.73 | D30: "User Selects Bit Source"
A31: User Status Word Bit 14 Sel | C31: 6.74 | D31: "User Selects Bit Source" | F31: Other VFD Parameters that Accompany Communication Control
A32: User Status Word Bit 15 Sel | C32: 6.75 | D32: "User Selects Bit Source" | F32: Parameter Name | G32: Parameter | H32: Parameter Setting | I32: Units
F33: =IF('Profile Selection'!$P$9="Scalar (V/Hz)","Freq Accel Time 1","Acceleration Time 1") -> Acceleration Time 1 | G33: =IF('Profile Selection'!$P$9="Scalar (V/Hz)",28.72,23.12) -> 23.12 | H33: 5.00 s | I33: s
A34: Parameters for Configuring User Defined Data Words | F34: =IF('Profile Selection'!$P$9="Scalar (V/Hz)","Freq Decel Time 1","Deceleration Time 1") -> Deceleration Time 1 | G34: =IF('Profile Selection'!$P$9="Scalar (V/Hz)",28.73,23.13) -> 23.13 | H34: 5.00 s | I34: s
A35: Inputs (Read) to PLC from VFD | C35: Outputs (Write) from PLC to VFD | F35: =IF('Profile Selection'!$P$9="Scalar (V/Hz)","Minimum Frequency","Minimum Speed") -> Minimum Speed | G35: =IF('Profile Selection'!$P$9="Scalar (V/Hz)",30.13,30.11) -> 30.11 | H35: 0 | I35: =IF('Profile Selection'!$P$9="Scalar (V/Hz)","Hz","rpm") -> rpm
A36: Parameter | B36: Parameter Setting | C36: Parameter | D36: Parameter Setting | F36: =IF('Profile Selection'!$P$9="Scalar (V/Hz)","Maximum Frequency","Maximum Speed") -> Maximum Speed | G36: =IF('Profile Selection'!$P$9="Scalar (V/Hz)",30.14,30.12) -> 30.12 | H36: =+MaxFreqORRPMDef -> 1800 | I36: =IF('Profile Selection'!$P$9="Scalar (V/Hz)","Hz","rpm") -> rpm
A37: 52.01 (32bit) | B37: =IF($I$60="NA","NA", IF($J$60>150,'Profile Selection'!X190, "NA")) -> NA | C37: 53.01 (32bit) | D37: =IF($I$60="NA","NA", IF($J$60>150,'Profile Selection'!AD190, "NA")) -> NA | F37: =IF('Profile Selection'!$P$9="Scalar (V/Hz)","Frequency Scaling","Speed Scaling") -> Speed Scaling | G37: =IF('Profile Selection'!$P$9="Scalar (V/Hz)",46.02,46.01) -> 46.01 | H37: =+MaxFreqORRPMDef -> 1800 | I37: =IF('Profile Selection'!$P$9="Scalar (V/Hz)","Hz","rpm") -> rpm
A38: 52.02 | B38: =IF($I$60="NA","NA", IF($J$60>150,"Reserved", "NA")) -> NA | C38: 53.02 | D38: =IF($I$60="NA","NA", IF($J$60>150,"Reserved", "NA")) -> NA
A39: 52.03 (32bit) | B39: =IF($I$60="NA","NA", IF($J$60>150,'Profile Selection'!X191, "NA")) -> NA | C39: 53.03 (32bit) | D39: =IF($I$60="NA","NA", IF($J$60>150,'Profile Selection'!AD191, "NA")) -> NA
A40: 52.04 | B40: =IF($I$60="NA","NA", IF($J$60>150,"Reserved", "NA")) -> NA | C40: 53.04 | D40: =IF($I$60="NA","NA", IF($J$60>150,"Reserved", "NA")) -> NA
A41: 52.05 (32bit) | B41: =IF($I$60="NA","NA", IF($J$60>150,'Profile Selection'!X192, "NA")) -> NA | C41: 53.05 (32bit) | D41: =IF($I$60="NA","NA", IF($J$60>150,'Profile Selection'!AD192, "NA")) -> NA
A42: 52.06 | B42: =IF($I$60="NA","NA", IF($J$60>150,"Reserved", "NA")) -> NA | C42: 53.06 | D42: =IF($I$60="NA","NA", IF($J$60>150,"Reserved", "NA")) -> NA
A43: 52.07 (32bit) | B43: =IF($I$60="NA","NA", IF($J$60>150,'Profile Selection'!X193, "NA")) -> NA | C43: 53.07 (32bit) | D43: =IF($I$60="NA","NA", IF($J$60>150,'Profile Selection'!AD193, "NA")) -> NA
A44: 52.08 | B44: =IF($I$60="NA","NA", IF($J$60>150,"Reserved", "NA")) -> NA | C44: 53.08 | D44: =IF($I$60="NA","NA", IF($J$60>150,"Reserved", "NA")) -> NA
A45: 52.09 (32bit) | B45: =IF($I$60="NA","NA", IF(J$60>150,'Profile Selection'!X194, "NA")) -> NA | C45: 53.09 (32bit) | D45: =IF($I$60="NA","NA", IF($J$60>150,'Profile Selection'!AD194, "NA")) -> NA
A46: 52.1 | B46: =IF($I$60="NA","NA", IF($J$60>150,"Reserved", "NA")) -> NA | C46: 53.1 | D46: =IF($I$60="NA","NA", IF($J$60>150,"Reserved", "NA")) -> NA
I59: Output | J59: Input | K59: Size16 | L59: Size32
B60: NO | C60: "User Defines Setting" | I60: =IF('Profile Selection'!L49="Transparent 32 Profile",IF('Profile Selection'!J14="NO",IF(OR('Profile Selection'!#REF!>2, 'Profile Selection'!#REF!>2),121,21),IF(OR('Profile Selection'!#REF!>3, 'Profile Selection'!#REF!>3),122,22)),"NA") -> NA | J60: =VLOOKUP(I60,I67:K71,2) -> NA | K60: =VLOOKUP($I$60,$I$67:$K$71,3) -> NA | L60: =VLOOKUP($I$60,$I$67:$L$71,4) -> NA
B61: YES | C61: "Define Bit in User CW 6.03"
B62: NO | C62: "User Defines Setting"
B63: YES | C63: "Define Bit in User CW 6.03"
B64: NO | C64: "User Defines Setting"
B65: YES | C65: FB A ref1 | I65: Assembly Instances for ODVA ACDC Basic Profile
B66: NO | C66: "User Defines Setting" | I66: Output | J66: Input | K66: 16bit | L66: 32bit
B67: YES | C67: "Define Bit in User CW 6.03" | I67: NA | J67: NA | K67: NA | L67: NA
B68: NO | C68: EXT1 | I68: 21 | J68: 71 | K68: 4 | L68: 2
B69: YES | C69: "Define Bit in User CW 6.03" | I69: 22 | J69: 72 | K69: 6 | L69: 3
B70: NO | C70: "User Defines Setting" | I70: 121 | J70: 171 | K70: 14 | L70: 7
B71: YES | C71: FB A ref2 | I71: 122 | J71: 172 | K71: 16 | L71: 8
B72: NO | C72: "User Defines Setting"
B73: YES | C73: FB A ref2
C93: =IF(B11="NO",4,3) -> 4

Sheet Profile and Instances (hidden)
A33: ACDC Profiles
A34: EIP ACDC Profile - also referred to as ODVA Profiles, is a control profile that is specified by a third party organization (Open Devicenet Vendors Association) that was defined so that all manufacturers AC and DC drives would look and control the same if this profile was adhered to. There are benefits to utilizing this type of profile, as it is very simplistic and thus makes writing the PLC control logic very fast and simple to maintain. The other benefit is that the speed reference and actual speed feedback are also simplified as the scaling is 1=1rpm. There are two versions of the ACDC ODVA Profile, "Basic" and "Extended". The "Basic" version of the ODVA Control profile does not support change of motor direction commands where the Extended ACDC does support it. The Extended ACDC Profile also supports more status bits such as: VFD Warning Status, Direction of operation, VFD Ready Status, and motor At Speed status. The ACDC Profiles support Torque Reference and Actual Torque feedback, but it should be known that the scaling is 1=1Nm, and may not provide the resolution required by the application, and would require some math functionality in the PLC if Torque was normally looked at in % of Motor Nominal or in lbft. Note: If Torque control is not required, but torque feedback is desired, you can utilize one of the available Input Data Pointers to represent motor torque to provide the level of resolution or different unit of measure.
A36: ABB Profile
A37: ABB Drives Profile - Is a control profile that was designed with larger process or coordinated system control in mind. This profile supports much more control functionality than the ACDC Profiles, such as switching between two control locations, jogging, multiple ways of stopping the VFD (Coast, Ramp, Torque Limit), and profides bits for manipulation of the speed reference ramp generator. However, because of this additional functionality, it should be known from the PLC programmers perspective that there is a State Machine flow to the control logic that must be satisfied to issue run commands to the VFD. The speed reference provides a higher level of resolution than that of the ACDC Profile, but would also require math to convert +/-20000 to rpm or hz based on the control mode of the VFD. ABB Drives Profile also supports Torque Reference and Actual Torque Feedback. Torque has a higher level of resolution for more finite control vs the ACDC Profile if application requires torque control of the motor.
A39: Transparent Profiles
A40: Transparent Profiles - Two different Transparent profiles are supported only by the ACS880 at present time, they are: Transparent 16 and Transparent 32. The Transparent Profiles can be utilized to allow the PLC programmer to customize the VFD control and status bit structure to their liking. It is possible to reuse another VFD manufacturers Control and Status word control bit structures for the ABB ACS880, thus mimicking the other VFD by configuring the ACS880 to utilize a custom bit structure. Just realize, that by utilizing the Transparent Profiles it will require more parameters to be configured in the ACS880 which will define the bit structure of the Control Word and the Status Word. It should also be known that by selecting Transparent 32, the user is reducing the number of total data words transferred across Ethernet IP (ie Transparent 16 supports a max data packet of 13 words, Transparent 32 only supports a maximum size of 8) Both Transparent Profiles support Speed Control and Torque Control if required. The scaling utilized can be manipulated by the parameters found in 50.04-50.08 and the feedback signals can be user defined by parameters 50.09-50.11 along with the Input and Output Data Pointers in groups 52 and 53.
